Workbook

Sheet STOK YENİ (hidden)
A1: MARKİZZ STOK FORMU
A2: STOK KOD | B2: ALKAR KOD | C2: ALUMİNYUM MZ100-000 | D2: EBATLAR | E2: AĞIRLIK | F2: ADET | I2: GÖZ | J2: BASKI | K2: İŞÇİLİK | M2: RENK | N2: 1 BOY | O2: SİPARİŞ | P2: AĞIRLIK | Q2: NAKİT | R2: TUTAR
C3: KATLANIR SİSTEM
A4: MZ 100-010 | B4: 18135 | C4: A-RA 08-10-MAX KONDENS KANALLI RAY PROFİLİ | D4: 50*59,1 | E4: 1.428 | F4: KG/MT | M4: ELOKSAL | N4: 6.5 | O4: 67 | P4: =E4*N4*O4 -> 621.894 | Q4: 19.5 | R4: =P4*Q4 -> 12126.933
A5: MZ 100-011 | B5: 18135 | C5: A-RA 08-10-MAX KONDENS KANALLI RAY PROFİLİ | D5: 50*59,1 | E5: 1.428 | F5: KG/MT | M5: BRONZ | N5: 6.5 | O5: 20 | P5: =E5*N5*O5 -> 185.64 | Q5: 19.5 | R5: =P5*Q5 -> 3619.98
A6: MZ 100-020 | B6: 18137 | C6: A-RA 08-10-MAX AYAR PROFİLİ | D6: 55*58,5 | E6: 0.836 | F6: KG/MT | M6: ELOKSAL | N6: 6.5 | O6: 55 | P6: 298.87 | Q6: 19.5 | R6: 5827.965
A7: MZ 100-021 | B7: 18137 | C7: A-RA 08-10-MAX AYAR PROFİLİ | D7: 55*58,5 | E7: 0.836 | F7: KG/MT | M7: BRONZ | N7: 6.5 | O7: 19 | P7: 103.246 | Q7: 19.5 | R7: 2013.297
A8: MZ 100-030 | B8: 18144 | C8: A-RA 08-10-MAX YAN DİKME PROFİLİ | D8: 36*52,6 | E8: 0.529 | F8: KG/MT | M8: ELOKSAL | N8: 6.5 | O8: 73 | P8: 251.0105 | Q8: 19.5 | R8: 4894.70475
A9: MZ 100-031 | B9: 18144 | C9: A-RA 08-10-MAX YAN DİKME PROFİLİ | D9: 36*52,6 | E9: 0.529 | F9: KG/MT | M9: BRONZ | N9: 6.5 | O9: 20 | P9: 68.77 | Q9: 19.5 | R9: 1341.015
A10: MZ 100-040 | B10: 18143 | C10: A-RA 08 KANAT PROFİLİ | D10: 30*45 | E10: 0.754 | F10: KG/MT | M10: ELOKSAL | N10: 6.5 | O10: 78 | P10: 382.278 | Q10: 19.5 | R10: 7454.421
A11: MZ 100-041 | B11: 18143 | C11: A-RA 08 KANAT PROFİLİ | D11: 30*45 | E11: 0.754 | F11: KG/MT | M11: BRONZ | N11: 6.5 | O11: 20 | P11: 98.02 | Q11: 19.5 | R11: 1911.39
A12: MZ 100-050 | B12: 18136 | C12: A-RA 10 KANAT PROFİLİ | D12: 30*45 | E12: 0.76 | F12: KG/MT | M12: ELOKSAL | N12: 6.5 | O12: 0 | P12: 0 | Q12: 19.5 | R12: 0
A13: MZ 100-051 | B13: 18136 | C13: A-RA 10 KANAT PROFİLİ | D13: 30*45 | E13: 0.76 | F13: KG/MT | M13: BRONZ | N13: 6.5 | O13: 0 | P13: 0 | Q13: 19.5 | R13: 0
A14: MZ 100-060 | B14: 18142 | C14: A-RA MAX KANAT PROFİLİ | D14: 25*33,8 | E14: 0.435 | F14: KG/MT | M14: ELOKSAL | N14: 6.5 | O14: 80 | P14: 226.2 | Q14: 19.5 | R14: 4410.9
A15: MZ 100-061 | B15: 18142 | C15: A-RA MAX KANAT PROFİLİ | D15: 25*33,8 | E15: 0.435 | F15: KG/MT | M15: BRONZ | N15: 6.5 | O15: 20 | P15: 56.55 | Q15: 19.5 | R15: 1102.725
A16: MZ 100-070 | B16: 18141 | C16: A-RA MAX İSPANYOLET PROFİLİ | D16: 30*61,51 | E16: 0.624 | F16: KG/MT | M16: ELOKSAL | N16: 6.5 | O16: 58 | P16: 235.248 | Q16: 19.5 | R16: 4587.336
A17: MZ 100-071 | B17: 18141 | C17: A-RA MAX İSPANYOLET PROFİLİ | D17: 30*61,51 | E17: 0.624 | F17: KG/MT | M17: BRONZ | N17: 6.5 | O17: 20 | P17: 81.12 | Q17: 19.5 | R17: 1581.84
A18: MZ 100-080 | B18: 18140 | C18: A-RA MAX ARADİKME PROFİLİ | D18: 30*31,5 | E18: 0.347 | F18: KG/MT | M18: ELOKSAL | N18: 6.5 | O18: 94 | P18: 212.017 | Q18: 19.5 | R18: 4134.3315
A19: MZ 100-081 | B19: 18140 | C19: A-RA MAX ARADİKME PROFİLİ | D19: 30*31,5 | E19: 0.347 | F19: KG/MT | M19: BRONZ | N19: 6.5 | O19: 20 | P19: 45.11 | Q19: 19.5 | R19: 879.645
A20: MZ 100-090 | B20: 18139 | C20: A-RA MAX ARADİKME KARŞILIK PROFİLİ | D20: 30*30,5 | E20: 0.37 | F20: KG/MT | M20: ELOKSAL | N20: 6.5 | O20: 96 | P20: 230.88 | Q20: 19.5 | R20: 4502.16
A21: MZ 100-091 | B21: 18139 | C21: A-RA MAX ARADİKME KARŞILIK PROFİLİ | D21: 30*30,5 | E21: 0.37 | F21: KG/MT | M21: BRONZ | N21: 6.5 | O21: 18 | P21: 43.29 | Q21: 19.5 | R21: 844.155
A22: MZ 100-100 | B22: 18138 | C22: A-RA MAX AÇILI BİRLEŞİM PROFİLİ | D22: 30*35,2 | E22: 0.389 | F22: KG/MT | M22: ELOKSAL | N22: 6.5 | O22: 93 | P22: 235.1505 | Q22: 19.5 | R22: 4585.43475
A23: MZ 100-101 | B23: 18138 | C23: A-RA MAX AÇILI BİRLEŞİM PROFİLİ | D23: 30*35,2 | E23: 0.389 | F23: KG/MT | M23: BRONZ | N23: 6.5 | O23: 20 | P23: 50.57 | Q23: 19.5 | R23: 986.115
C24: SÜRME SİSTEM
A25: MZ 100-110 | B25: 18145 | C25: A-RA SLIDE MAX RAY PROFİLİ | D25: 43,4*96,9 | E25: 1.396 | F25: KG/MT | M25: ELOKSAL | N25: 6.5 | P25: 0 | Q25: 19.5 | R25: 0
A26: MZ 100-111 | B26: 18145 | C26: A-RA SLIDE MAX RAY PROFİLİ | D26: 43,4*96,9 | E26: 1.396 | F26: KG/MT | M26: BRONZ | N26: 6.5 | P26: =E26*N26*O26 -> 0 | Q26: 19.5 | R26: =P26*Q26 -> 0
A27: MZ 100-130 | B27: 18147 | C27: A-RA SLIDE MAX YAN DİKME PROFİLİ | D27: 12*96,9 | E27: 0.824 | F27: KG/MT | M27: ELOKSAL | N27: 6.5 | P27: =E27*N27*O27 -> 0 | Q27: 19.5 | R27: =P27*Q27 -> 0
A28: MZ 100-131 | B28: 18147 | C28: A-RA SLIDE MAX YAN DİKME PROFİLİ | D28: 12*96,9 | E28: 0.824 | F28: KG/MT | M28: BRONZ | N28: 6.5 | P28: =E28*N28*O28 -> 0 | Q28: 19.5 | R28: =P28*Q28 -> 0
A29: MZ 100-120 | B29: 18146 | C29: A-RA SLIDE MAX EK RAY PROFİLİ | D29: 37*43,4 | E29: 0.563 | F29: KG/MT | M29: ELOKSAL | N29: 6.5 | P29: 0 | Q29: 19.5 | R29: 0
A30: MZ 100-131 | B30: 18146 | C30: A-RA SÜRME EK RAY PROFİLİ | D30: 37*43,4 | E30: 0.563 | F30: KG/MT | M30: BRONZ | N30: 6.5 | P30: =E30*N30*O30 -> 0 | Q30: 19.5 | R30: =P30*Q30 -> 0
A31: MZ 100-140 | B31: 18148 | C31: A-RA SLIDE MAX EK YAN DİKME PROFİLİ | D31: 12*37 | E31: 0.354 | F31: KG/MT | M31: ELOKSAL | N31: 6.5 | P31: =E31*N31*O31 -> 0 | Q31: 19.5 | R31: =P31*Q31 -> 0
A32: MZ 100-141 | B32: 18148 | C32: A-RA SLIDE MAX EK YAN DİKME PROFİLİ | D32: 12*37 | E32: 0.354 | F32: KG/MT | M32: BRONZ | N32: 6.5 | P32: 0 | Q32: 19.5 | R32: 0
A33: MZ 100-150 | B33: 18153 | C33: A-RA SLIDE MAX KANAT BAZA PROFİLİ | D33: 23,5*95,3 | E33: 1.019 | F33: KG/MT | M33: ELOKSAL | N33: 6.5 | P33: 0 | Q33: 19.5 | R33: 0
A34: MZ 100-151 | B34: 18153 | C34: A-RA SLIDE MAX KANAT BAZA PROFİLİ | D34: 23,5*95,3 | E34: 1.019 | F34: KG/MT | M34: BRONZ | N34: 6.5 | P34: 0 | Q34: 19.5 | R34: 0
A35: MZ 100-160 | B35: 18149 | C35: A-RA SLIDE MAX ÇEKME PROFİLİ | D35: 33,7*35,7 | E35: 0.608 | F35: KG/MT | M35: ELOKSAL | N35: 6.5 | P35: 0 | Q35: 19.5 | R35: 0
A36: MZ 100-161 | B36: 18149 | C36: A-RA SLIDE MAX ÇEKME PROFİLİ | D36: 33,7*35,7 | E36: 0.608 | F36: KG/MT | M36: BRONZ | N36: 6.5 | P36: 0 | Q36: 19.5 | R36: 0
A37: MZ 100-170 | B37: 18152 | C37: A-RA SLIDE MAX KİLİT PROFİLİ | D37: 26,8*65 | E37: 0.723 | F37: KG/MT | M37: ELOKSAL | N37: 6.5 | P37: 0 | Q37: 19.5 | R37: 0
A38: MZ 100-171 | B38: 18152 | C38: A-RA SLIDE MAX KİLİT PROFİLİ | D38: 26,8*65 | E38: 0.723 | F38: KG/MT | M38: BRONZ | N38: 6.5 | P38: 0 | Q38: 19.5 | R38: 0
A39: MZ 100-180 | B39: 18151 | C39: A-RA SLIDE MAX KİLİT KARŞILIĞI PROFİLİ | D39: 23,3*33 | E39: 0.477 | F39: KG/MT | M39: ELOKSAL | N39: 6.5 | P39: 0 | Q39: 19.5 | R39: 0
A40: MZ 100-181 | B40: 18151 | C40: A-RA SLIDE MAX KİLİT KARŞILIĞI PROFİLİ | D40: 23,3*33 | E40: 0.477 | F40: KG/MT | M40: BRONZ | N40: 6.5 | P40: 0 | Q40: 19.5 | R40: 0
A41: MZ 100-190 | B41: 18150 | C41: A-RA SLIDE MAX 90* KİLİT KARŞILIĞI PROFİLİ | D41: 40,8*44,30 | E41: 0.688 | F41: KG/MT | M41: ELOKSAL | N41: 6.5 | P41: 0 | Q41: 19.5 | R41: 0
A42: MZ 100-191 | B42: 18150 | C42: A-RA SLIDE MAX 90* KİLİT KARŞILIĞI PROFİLİ | D42: 40,8*44,30 | E42: 0.688 | F42: KG/MT | M42: BRONZ | N42: 6.5 | P42: 0 | Q42: 19.5 | R42: 0
C43: GİYOTİN SİSTEM
A44: MZ 100-200 | C44: GİYOTİN KUTU KASA PROFİLİ | E44: 0 | F44: KG/MT | N44: 6.5 | P44: 0 | Q44: 19.5 | R44: 0
A45: MZ 100-210 | C45: GİYOTİN KUTU KASA KAPAK PROFİLİ | E45: 0 | F45: KG/MT | N45: 6.5 | P45: 0 | Q45: 19.5 | R45: 0
A46: MZ 100-220 | C46: GİYOTİN DİKME PROFİLİ | E46: 0 | F46: KG/MT | N46: 6.5 | P46: 0 | Q46: 19.5 | R46: 0
A47: MZ 100-230 | C47: GİYOTİN DİKME ARA PROFİLİ | E47: 0 | F47: KG/MT | N47: 6.5 | P47: 0 | Q47: 19.5 | R47: 0
A48: MZ 100-240 | C48: GİYOTİN DİKME KAPAK PROFİLİ | E48: 0 | F48: KG/MT | N48: 6.5 | P48: 0 | Q48: 19.5 | R48: 0
A49: MZ 100-250 | C49: GİYOTİN ÇEKME PROFİLİ | E49: 0 | F49: KG/MT | N49: 6.5 | P49: 0 | Q49: 19.5 | R49: 0
A50: MZ 100-260 | C50: GİYOTİN KÜPEŞTE PROFİLİ | E50: 0 | F50: KG/MT | N50: 6.5 | P50: 0 | Q50: 19.5 | R50: 0
C51: KÜPEŞTE SİSTEMİ
C52: KASETLİ TENTE SİSTEMİ
C53: FOTOSELLİ KAPI SİSTEMİ
A54: MZ 100-270 | F54: KG/MT | N54: 6.5 | P54: 0 | Q54: 19.5 | R54: 0
A55: MZ 100-280 | F55: KG/MT | N55: 6.5 | P55: 0 | Q55: 19.5 | R55: 0
A56: MZ 100-290 | F56: KG/MT | N56: 6.5 | P56: 0 | Q56: 19.5 | R56: 0
A57: MZ 100-300 | B57: 8210 | C57: KÖŞEBENT-LAMEL | D57: 0*40*1,2 | E57: 0.128 | F57: KG/MT | N57: 6.5 | P57: 0 | Q57: 19.5 | R57: 0
A58: MZ 100-310 | C58: KÖŞEBENT | D58: 20*20*1,2 | F58: KG/MT | N58: 6.5 | P58: 0 | Q58: 19.5 | R58: 0
A59: MZ 100-320 | C59: KÖŞEBENT | D59: 20*20*1,5 | F59: KG/MT | N59: 6.5 | P59: 0 | Q59: 19.5 | R59: 0
A60: MZ 100-330 | B60: 8516 | C60: KÖŞEBENT | D60: 20*40*1,2 | E60: 0.192 | F60: KG/MT | N60: 6.5 | P60: 0 | Q60: 19.5 | R60: 0
A61: MZ 100-340 | B61: 8508 | C61: KÖŞEBENT | D61: 20*40*1,5 | E61: 0.238 | F61: KG/MT | M61: ELOKSAL | N61: 6.5 | O61: 118 | P61: 182.546 | Q61: 19.5 | R61: 3559.647
A62: MZ 100-341 | B62: 8508 | C62: KÖŞEBENT | D62: 20*40*1,5 | E62: 0.238 | F62: KG/MT | M62: BRONZ | N62: 6.5 | O62: 20 | P62: 30.94 | Q62: 19.5 | R62: 603.33
A63: MZ 100-350 | B63: 8517 | C63: KÖŞEBENT | D63: 20*60*1,2 | E63: 0.256 | F63: KG/MT | M63: ELOKSAL | N63: 6.5 | O63: 131 | P63: 217.984 | Q63: 19.5 | R63: 4250.688
A64: MZ 100-351 | B64: 8517 | C64: KÖŞEBENT | D64: 20*60*1,2 | E64: 0.256 | F64: KG/MT | M64: BRONZ | N64: 6.5 | O64: 17 | P64: 28.288 | Q64: 19.5 | R64: 551.616
A65: MZ 100-360 | C65: KÖŞEBENT | D65: 20*60*1,5 | F65: KG/MT | N65: 6.5 | P65: 0 | Q65: 19.5 | R65: 0
A66: MZ 100-370 | C66: KUTU PROFİL | D66: 40*40*1,2 | F66: KG/MT | N66: 6.5 | P66: 0 | Q66: 19.5 | R66: 0
A67: MZ 100-380 | C67: KUTU PROFİL | D67: 40*40*1,5 | F67: KG/MT | N67: 6.5 | P67: 0 | Q67: 19.5 | R67: 0
A68: MZ 100-390 | B68: 1065 | C68: KUTU PROFİL | D68: 40*50*0,9 | E68: 0.43 | F68: KG/MT | M68: ELOKSAL | N68: 6.5 | O68: 67 | P68: 187.265 | Q68: 19.5 | R68: 3651.6675
A69: MZ 100-391 | B69: 1065 | C69: KUTU PROFİL | D69: 40*50*0,9 | E69: 0.43 | F69: KG/MT | M69: BRONZ | N69: 6.5 | O69: 20 | P69: 55.9 | Q69: 19.5 | R69: 1090.05
A70: MZ 100-400 | C70: KUTU PROFİL | D70: 40*60*1,2 | F70: KG/MT | N70: 6.5 | P70: 0 | Q70: 19.5 | R70: 0
A71: MZ 100-410 | C71: KUTU PROFİL | D71: 60*80*1,2 | F71: KG/MT | N71: 6.5 | P71: 0 | Q71: 19.5 | R71: 0
A72: MZ 100-420 | C72: KÜPEŞTE GEMİCİ ALT | F72: KG/MT | N72: 6.5 | P72: 0 | Q72: 19.5 | R72: 0
A73: MZ 100-430 | C73: KÜPEŞTE İNCE U ALT | D73: 16*22 | F73: KG/MT | N73: 6.5 | P73: 0 | Q73: 19.5 | R73: 0
A74: MZ 100-440 | B74: 17107 | C74: KÜPEŞTE KÜÇÜK KARE | D74: 22*16,2 | E74: 0.28 | F74: KG/MT | M74: ELOKSAL | N74: 6 | O74: 40 | P74: 67.2 | Q74: 19.5 | R74: 1310.4
A75: MZ 100-441 | B75: 17107 | C75: KÜPEŞTE KÜÇÜK KARE | D75: 22*16,2 | E75: 0.28 | F75: KG/MT | M75: BRONZ | N75: 6 | O75: 20 | P75: 33.6 | Q75: 19.5 | R75: 655.2
A76: MZ 100-450 | C76: KÜPEŞTE BÜYÜK KARE | F76: KG/MT | M76: ELOKSAL | N76: 6.5 | P76: 0 | Q76: 19.5 | R76: 0
A77: MZ 100-500 | C77: 8 MM DÜZ MIKNATISLI FİTİL-0,070gr | E77: 0.15 | F77: KG/MT | M77: ELOKSAL | N77: 6.5 | P77: 0 | Q77: 19.5 | R77: 0
A78: MZ 100-510 | C78: 8 MM 90° MIKNATISLI FİTİL-0,090gr | E78: 0.17 | F78: KG/MT | M78: ELOKSAL | N78: 6.5 | P78: 0 | Q78: 19.5 | R78: 0
A79: MZ 100-520 | C79: 8 MM F MIKNATISLI FİTİL-0,115gr | E79: 0.17 | F79: KG/MT | M79: ELOKSAL | N79: 6.5 | P79: 0 | Q79: 19.5 | R79: 0
A80: MZ 100-530 | C80: 10 MM DÜZ MIKNATISLI FİTİL | E80: 0 | F80: KG/MT | M80: ELOKSAL | N80: 6.5 | P80: 0 | Q80: 19.5 | R80: 0
A81: MZ 100-540 | C81: 10 MM 90° MIKNATISLI FİTİL | E81: 0 | F81: KG/MT | M81: ELOKSAL | N81: 6.5 | P81: 0 | Q81: 19.5 | R81: 0
A82: MZ 100-550 | C82: 10 MM F MIKNATISLI FİTİL | E82: 0 | F82: KG/MT | M82: ELOKSAL | N82: 6.5 | P82: 0 | Q82: 19.5 | R82: 0
O83: =SUM(O4:O82) -> 1304 | P83: =SUM(P4:P82) -> 4229.587 | Q83: TUTAR | R83: =SUM(R4:R82) -> 82476.9465
Q84: KDV %18 | R84: =R83*18/100 -> 14845.85037
Q85: TOPLAM | R85: =R83+R84 -> 97322.79687
A86: STOK KOD | B86: SÖZEN KOD | C86: POLYAMİD MZ 200-000 | D86: EBATLAR | E86: AĞIRLIK | G86: %10 FİRELİ AĞIRLIK | I86: GÖZ | J86: MALZEME FİYATI | K86: İŞÇİLİK | L86: işçilik +%10 MALZEME TAKMALI | N86: SAYIM | O86: ADET | P86: AĞIRLIK/GR | Q86: BİRİM FİYATI | R86: TUTAR | S86: malzeme
A87: MZ 200-001 | C87: BASKILI RULMAN PLASTİĞİ | D87: 12,4*38 | E87: 9 | F87: GR/AD | G87: =(E87/1000)*1.1 -> 0.0099 | H87: GR/AD | I87: 8 | J87: =G87*S87 -> 0.1485 | K87: 1.5 | L87: 0.15 | M87: KALIP/TL | N87: 3160 | O87: 3160 | P87: =E87*O87 -> 28440 | Q87: =((K87+L87)/I87)+J87 -> 0.35475 | R87: =O87*Q87 -> 1121.01 | S87: 15
A88: MZ 200-002 | C88: MENTEŞE SABİTLEME LAMEL TAKOZU | D88: 15,2*40,4*65,9 | E88: 18 | F88: GR/AD | G88: =(E88/1000)*1.1 -> 0.0198 | H88: GR/AD | I88: 4 | J88: =G88*S87 -> 0.297 | K88: 1.5 | L88: 0.15 | M88: KALIP/TL | N88: 12 | O88: 12 | P88: =E88*O88 -> 216 | Q88: =((K88+L88)/I88)+J88 -> 0.7095 | R88: =O88*Q88 -> 8.514
A89: MZ 200-003 | C89: MENTEŞE MİL YATAĞI | D89: 16*22*13,3 | E89: 1 | F89: GR/AD | G89: 0.0011 | H89: GR/AD | I89: 4 | J89: =G89*S87 -> 0.0165 | K89: 1.5 | N89: 350 | O89: 350 | P89: 350 | Q89: 0.3915 | R89: 137.025
A90: MZ 200-004 | C90: ALT ÇIKIŞ AĞZI | D90: 20,6*47,5*56 | E90: 11.5 | F90: GR/AD | G90: 0.01265 | H90: GR/AD | I90: 2 | J90: =G90*S87 -> 0.18975 | K90: 1.5 | N90: 300 | O90: 300 | P90: 3450 | Q90: 0.93975 | R90: 281.925
A91: MZ 200-005 | C91: ALT ÇIKIŞ AĞZI KAPAĞI | D91: 44,8*65*67,6 | E91: 23 | F91: GR/AD | G91: 0.0253 | H91: GR/AD | I91: 2 | J91: =G91*S87 -> 0.3795 | K91: 1.5 | L91: 0.15 | M91: KALIP/TL | N91: 10 | O91: 10 | P91: 230 | Q91: 1.2045 | R91: 12.045
A92: MZ 200-006 | C92: ÜST ÇIKIŞ AĞZI | D92: 24,5*48*85 | E92: 23 | F92: GR/AD | G92: 0.0253 | H92: GR/AD | I92: 2 | J92: =G92*S87 -> 0.3795 | K92: 1.5 | N92: 300 | O92: 300 | P92: 6900 | Q92: 1.1295 | R92: 338.85
A93: MZ 200-007 | C93: KLAVUZ - BOYNUZ | D93: 39,9*68,1*151,8 | E93: 32.5 | F93: GR/AD | G93: 0.03575 | H93: GR/AD | I93: 2 | J93: =G93*S87 -> 0.53625 | K93: 1.5 | N93: 300 | O93: 300 | P93: 9750 | Q93: 1.28625 | R93: 385.875
A94: MZ 200-008 | C94: KLAVUZ - BOYNUZ TABANI | D94: 19,38*38,9*40 | E94: 12.5 | F94: GR/AD | G94: 0.01375 | H94: GR/AD | I94: 4 | J94: =G94*S87 -> 0.20625 | K94: 1.5 | N94: 300 | O94: 300 | P94: 3750 | Q94: 0.58125 | R94: 174.375
A95: MZ 200-009 | C95: 8 - 10 MM CAM PİMİ | D95: 9,9*20,2 | E95: 1 | F95: GR/AD | G95: 0.0011 | H95: GR/AD | I95: 8 | J95: =G95*S87 -> 0.0165 | K95: 1.5 | N95: 4000 | O95: 4000 | P95: 4000 | Q95: 0.204 | R95: 816
A96: MZ 200-010 | C96: 90° İNCE KAPAK SOL-ALT | D96: 21*30*45 | E96: 7 | F96: GR/AD | G96: 0.0077 | H96: GR/AD | I96: 4 | J96: =G96*S87 -> 0.1155 | K96: 1.5 | N96: 100 | O96: 100 | P96: 700 | Q96: 0.4905 | R96: 49.05
A97: MZ 200-011 | C97: 90° İNCE KAPAK SOL-ÜST | D97: 21*30*45 | E97: 7 | F97: GR/AD | G97: 0.0077 | H97: GR/AD | I97: 4 | J97: =G97*S87 -> 0.1155 | K97: 1.5 | N97: 100 | O97: 100 | P97: 700 | Q97: 0.4905 | R97: 49.05
A98: MZ 200-012 | C98: 90° KALIN KAPAK SAĞ-ALT | D98: 21*30*45 | E98: 13 | F98: GR/AD | G98: 0.0143 | H98: GR/AD | I98: 4 | J98: =G98*S87 -> 0.2145 | K98: 1.5 | N98: 100 | O98: 100 | P98: 1300 | Q98: 0.5895 | R98: 58.95
A99: MZ 200-013 | C99: 90° KALIN KAPAK SAĞ-ÜST | D99: 21*30*45 | E99: 13 | F99: GR/AD | G99: 0.0143 | H99: GR/AD | I99: 4 | J99: =G99*S87 -> 0.2145 | K99: 1.5 | N99: 100 | O99: 100 | P99: 1300 | Q99: 0.5895 | R99: 58.95
A100: MZ 200-014 | C100: DÜZ KAPAK SOL | D100: 16,7*30*45 | E100: 6 | F100: GR/AD | G100: 0.0066 | H100: GR/AD | I100: 12 | J100: =G100*S87 -> 0.099 | K100: 1.5 | N100: 1860 | O100: 1860 | P100: 11160 | Q100: 0.224 | R100: 416.64
A101: MZ 200-015 | C101: DÜZ KAPAK SAĞ | D101: 16,7*30*45 | E101: 6 | F101: GR/AD | G101: 0.0066 | H101: GR/AD | I101: 12 | J101: =G101*S87 -> 0.099 | K101: 1.5 | N101: 1860 | O101: 1860 | P101: 11160 | Q101: 0.224 | R101: 416.64
A102: MZ 200-016 | C102: 135° KAPAK İNCE SAĞ | D102: 14,8*27,8*45 | F102: GR/AD | G102: 0 | H102: GR/AD | J102: =G102*S87 -> 0 | K102: 1.5 | N102: 0 | O102: 1860 | P102: =E102*O102 -> 0 | Q102: =((K102+L102)/I102)+J102 ->  | R102: =O102*Q102 -> 
A103: MZ 200-017 | C103: 135° KAPAK İNCE SOL | D103: 14,8*27,8*45 | F103: GR/AD | G103: 0 | H103: GR/AD | J103: =G103*S87 -> 0 | K103: 1.5 | N103: 0 | O103: 1860 | P103: 0
A104: MZ 200-018 | C104: 135° KAPAK KALIN SOL | D104: 30*45*38 | F104: GR/AD | G104: 0 | H104: GR/AD | J104: =G104*S87 -> 0 | K104: 1.5 | N104: 0 | O104: 1860 | P104: 0
A105: MZ 200-019 | C105: 135° KAPAK KALIN SAĞ | D105: 30*45*38 | F105: GR/AD | G105: 0 | H105: GR/AD | J105: =G105*S87 -> 0 | K105: 1.5 | N105: 0 | O105: 1860 | P105: 0
A106: MZ 200-020 | C106: KANAT SABİTLEME MIKNATIS TAKOZU | F106: GR/AD | G106: 0 | H106: GR/AD | J106: =G106*S87 -> 0 | K106: 1.5 | N106: 0 | O106: 1860 | P106: 0
A107: MZ 200-021 | C107: ÇARPMA KİLİT GÖVDESİ | D107: 22,5*48*40 | E107: 16.5 | F107: GR/AD | G107: 0.01815 | H107: GR/AD | I107: 2 | J107: =G107*S87 -> 0.27225 | K107: 1.5 | N107: 600 | O107: 1860 | P107: 30690 | Q107: 1.02225 | R107: 1901.385
A108: MZ 200-022 | C108: ÇARPMA KİLİT DİLİ | D108: 19*73,94 | E108: 12 | F108: GR/AD | G108: 0.0132 | H108: GR/AD | I108: 2 | J108: =G108*S87 -> 0.198 | K108: 1.5 | N108: 600 | O108: 1860 | P108: 22320 | Q108: 0.948 | R108: 1763.28
A109: MZ 200-023 | C109: ÇARPMA KİLİT DİL EMNİYETİ | D109: 3*4*14,4 | E109: 1 | F109: GR/AD | G109: 0.0011 | H109: GR/AD | I109: 4 | J109: =G109*S87 -> 0.0165 | K109: 1.5 | N109: 1200 | O109: 1860 | P109: 1860 | Q109: 0.3915 | R109: 728.19
A110: MZ 200-024 | C110: SÜRME KANAT PROFİL KAPAĞI | D110: 19,2*90 | F110: GR/AD | G110: 0 | H110: GR/AD | J110: =G110*S87 -> 0 | K110: 1.5 | N110: 0 | O110: 1860 | P110: 0
A111: MZ 200-025 | C111: SÜRME TEKER POLYMİD | D111: 8,8*32 | F111: GR/AD | G111: 0 | H111: GR/AD | J111: =G111*S87 -> 0 | K111: 1.5 | N111: 0 | O111: 1860 | P111: 0
A112: MZ 200-026 | C112: İSPANYOLET MİL KAFASI
A113: MZ 200-027 | C113: İSPANYOLET MİL KAFASI YATAĞI | F113: GR/AD | H113: GR/AD | J113: =G113*S87 -> 0 | K113: 1.5 | N113: 0 | O113: 1860 | P113: 0
F114: GR/AD | H114: GR/AD | J114: =G114*S87 -> 0 | K114: 1.5 | N114: 0 | O114: 1860 | P114: 0
A115: MZ 200-029 | C115: VİDA KAPAĞI | F115: GR/AD | H115: GR/AD | O115: 0 | P115: 0 | Q115: 0 | R115: 0
A116: MZ 200-030 | C116: 1 MM CAM TAKOZU | F116: GR/AD | H116: GR/AD | O116: 0 | P116: 0 | Q116: 0 | R116: 0
A117: MZ 200-031 | C117: 2 MM CAM TAKOZU | F117: GR/AD | H117: GR/AD | O117: =SUM(O87:O116) -> 35172 | P117: =SUM(P87:P116) -> 138276 | Q117: TUTAR | R117: =SUM(R87:R116) -> 
A118: MZ 200-032 | C118: 3 MM CAM TAKOZU | F118: GR/AD | H118: GR/AD | Q118: KDV %18 | R118: 0
A119: MZ 200-033 | C119: 6 MM CAM TAKOZU | F119: GR/AD | H119: GR/AD | Q119: TOPLAM | R119: 0
F120: GR/AD | H120: GR/AD
F121: GR/AD | H121: GR/AD
A122: MZ 200-200 | C122: CAM FİTİLİ 8 mm. h | F122: GR/AD | H122: GR/AD
A123: MZ 200-210 | C123: CAM FİTİLİ 8 mm. H | F123: GR/AD | H123: GR/AD
A124: MZ 200-220 | C124: CAM FİTİLİ AÇILI 8 mm. h | F124: GR/AD | H124: GR/AD
A125: MZ 200-230 | C125: CAM FİTİLİ 10 mm. h | F125: GR/AD | H125: GR/AD
A126: MZ 200-240 | C126: CAM FİTİLİ 10 mm. H | F126: GR/AD | H126: GR/AD
F127: GR/AD | H127: GR/AD
A128: MZ 200-300 | C128: 0,48 * 450 | F128: GR/AD | H128: GR/AD
A129: MZ 200-310 | C129: 0,48 * 800 | F129: GR/AD | H129: GR/AD
A130: MZ 200-320 | C130: 0,48 * 1000
F131: GR/AD | H131: GR/AD
A132: MZ 200-400 | C132: AÇILI İÇ BİRLEŞİM CONTASI | F132: GR/AD | H132: GR/AD
A133: MZ 200-410 | C133: AÇILI DIŞ BİRLEŞİM CONTASI | F133: GR/AD | H133: GR/AD
A134: MZ 200-420 | C134: MENTEŞELİ KANAT CONTASI | F134: GR/AD | H134: GR/AD
A135: MZ 200-430 | C135: KANAT FİTİL CONTASI | F135: GR/AD | H135: GR/AD
A136: MZ 200-440 | C136: DİKME KARŞILIK PROFİLİ CONTASI | F136: GR/AD | H136: GR/AD
F137: GR/AD | H137: GR/AD
F138: GR/AD | H138: GR/AD
F139: GR/AD | H139: GR/AD
A140: STOK KOD | B140: ÜRETİM KOD | C140: ZAMAK5 MZ 300-000 | D140: EBATLAR | E140: AĞIRLIK | G140: %10 FİRELİ AĞIRLIK | I140: GÖZ | J140: BASKI | K140: İŞÇİLİK | L140: İLAVE İŞÇİLİK DİŞ ÇEKME | N140: SAYIM | O140: ADET | P140: AĞIRLIK/KĞ | Q140: BİRİM FİYATI | R140: TUTAR | S140: zamak kg | T140: 1 kişi günde makine ile 3500 diş
A141: MZ 300-001 | C141: MENTEŞE SABİTLEME TAKOZ LAMELİ | D141: 5*30*82,7 | E141: 64 | F141: GR/AD | G141: =(E141/1000)*1.1 -> 0.0704 | H141: GR/AD | I141: 4 | J141: 150 | K141: 2.8 | L141: 0 | M141: TL/AD | N141: 600 | O141: 600 | P141: =E141*O141 -> 38400 | Q141: =(G141*S141)+(K141/I141)+L141 -> 2.108 | R141: =O141*Q141 -> 1264.8 | S141: 20 | T141: aluminyum
A142: MZ 300-002 | C142: KAYAR KANAT ALT PARK LAMELİ | D142: 5*30*40 | E142: 21 | F142: GR/AD | G142: =(E142/1000)*1.1 -> 0.0231 | H142: GR/AD | I142: 6 | J142: 117 | K142: 2.8 | L142: 0.15 | M142: TL/AD | N142: 700 | O142: 700 | P142: =E142*O142 -> 14700 | Q142: =(G142*S142)+(K142/I142)+L142 -> 0.6166666667 | R142: 431.6666667 | T142: aluminyum
A143: MZ 300-003 | C143: KAYAR KANAT ÜST PARK LAMELİ | D143: 5*30*40 | E143: 25 | F143: GR/AD | G143: 0.0275 | H143: GR/AD | I143: 6 | J143: 117 | K143: 2.8 | L143: 0.15 | M143: TL/AD | N143: 700 | O143: 700 | P143: 17500 | Q143: 0.6166666667 | R143: 431.6666667 | T143: aluminyum
A144: MZ 300-004 | C144: AÇILI BİRLEŞİM LAMELİ | D144: 5*30*90 | E144: 41 | F144: GR/AD | G144: 0.0451 | H144: GR/AD | I144: 4 | J144: 150 | K144: 2.8 | L144: 0.45 | M144: TL/AD | N144: 600 | O144: 600 | P144: 24600 | Q144: 1.15 | R144: =O144*Q144 -> 690 | T144: aluminyum
A145: MZ 300-005 | C145: KAYAR KANAT MİLİ ARKA | D145: 24,7*49*52,3 | E145: 0 | F145: GR/AD | G145: 0 | H145: GR/AD | I145: 2 | J145: 700 | K145: 2.8 | L145: 0.15 | M145: TL/AD | N145: 1400 | O145: 1400 | P145: 0 | Q145: 1.55 | R145: 2170
A146: MZ 300-006 | C146: KAYAR KANAT MİLİ ÖN | D146: 24,7*49*52,3 | E146: 0 | F146: GR/AD | G146: 0 | H146: GR/AD | I146: 2 | J146: 700 | K146: 2.8 | L146: 0.15 | M146: TL/AD | N146: 1400 | O146: 1400 | P146: 0 | Q146: 1.55 | R146: 2170
A147: MZ 300-007 | C147: KAYAR KANAT MİL KAFASI | D147: 17*23 | E147: 0 | F147: GR/AD | G147: 0 | H147: GR/AD | I147: 4 | J147: 350 | K147: 2.8 | L147: 0 | M147: TL/AD | N147: 1400 | O147: 1400 | P147: 0 | Q147: 0.7 | R147: 980
A148: MZ 300-008 | C148: KAYAR KANAT MİL YÜZÜĞÜ | D148: 9*14 | E148: 4 | F148: GR/AD | G148: 0.0044 | H148: GR/AD | I148: 8 | J148: 350 | K148: 2.8 | L148: 0 | M148: TL/AD | N148: 2800 | O148: 2800 | P148: 11200 | Q148: 0.35 | R148: 980
A149: MZ 300-009 | C149: MENTEŞELİ KANAT MİLİ | D149: 23*51,5*27,3 | E149: 61 | F149: GR/AD | G149: 0.0671 | H149: GR/AD | I149: 4 | J149: 150 | K149: 2.8 | L149: 0.15 | M149: TL/AD | N149: 600 | O149: 600 | P149: 36600 | Q149: 0.85 | R149: 510
A150: MZ 300-010 | C150: KAYAR KANAT EMNİYET KİLİT | F150: GR/AD | G150: 0 | H150: GR/AD | K150: 2.8 | L150: 0.15 | M150: TL/AD | P150: 0
A151: MZ 300-011 | C151: KAYAR KANAT EMNİYET KİLİT KARŞILIĞI | F151: GR/AD | G151: 0 | H151: GR/AD | K151: 2.8 | L151: 0 | M151: TL/AD | P151: 0
A152: MZ 300-012 | C152: SÜRME TEKER DIŞ KASA | D152: 19,20*37*164,5 | F152: GR/AD | G152: 0 | H152: GR/AD | K152: 2.8 | L152: 0 | M152: TL/AD | O152: =SUM(O141:O151) -> 10200 | P152: =SUM(P141:P151) -> 143000 | Q152: TUTAR
A153: MZ 300-013 | C153: SÜRME TEKER İÇ KASA | D153: 14,34*29*119 | F153: GR/AD | G153: 0 | H153: GR/AD | K153: 2.8 | L153: 0 | M153: TL/AD | Q153: KDV %18
F154: GR/AD | G154: 0 | H154: GR/AD | K154: 2.8 | L154: 0 | M154: TL/AD | Q154: TOPLAM
A155: STOK KOD | B155: ÜRETİM KOD | C155: HIRDAVAT 400-000 | D155: EBATLAR | E155: AĞIRLIK/MT | I155: GÖZ | J155: BASKI | K155: İŞÇİLİK | M155: RENK | N155: 1 BOY | O155: ADET | P155: AĞIRLIK | Q155: BİRİM FİYATI | R155: TUTAR
A156: MZ 400-001 | C156: KANAT SABİTLEME MIKNATISI | F156: GR/AD
A157: MZ 400-002 | C157: S 6000 ZZ RULMAN- (0,18/0,98 TL) | D157: Ø10 | F157: GR/AD | O157: 53000 | P157: =E157*N157*O157 -> 0 | Q157: 1 | R157: 56000
A158: MZ 400-003 | C158: ÇIKIŞ AĞZI KAPAĞI+MENTEŞE TAKOZU- SOMUN | D158: M6 | F158: GR/AD | O158: 0 | P158: 0 | Q158: 0 | R158: =I158*P158*Q158 -> 0
A159: MZ 400-004 | C159: M6*25 HBİ İMBUS CİVATA (MENTEŞELİ KANAT SABİTLEME) | D159: M6*25 | F159: GR/AD | O159: 600 | P159: 0 | Q159: 0.19 | R159: 96
A160: MZ 400-005 | C160: M6*6 İNOX SETİSKUR (KAYAR+MENTEŞELİ KANAT MİLİ SABİTLEME) | D160: M6*10 | F160: GR/AD | O160: 7200 | P160: 0 | Q160: 0.048 | R160: 345.6
A161: MZ 400-008 | C161: M6*10 İNOX SETİSKUR (AÇILI BİRLEŞİM LAMELİ) | D161: M6*6 | F161: GR/AD | O161: 2400 | P161: 0 | Q161: 0.037 | R161: 88.8
A162: MZ 400-009 | C162: M8*10 İNOX SETİSKUR (PARK LAMELİ ALT) | D162: M8*10 | F162: GR/AD | O162: 600 | P162: 0 | Q162: 0.115 | R162: 69
A163: MZ 400-010 | C163: M8*12 İNOX SETİSKUR (PARK LAMELİ ÜST) | D163: M8*12
A164: MZ 400-011 | C164: 3.9*13 YSPB MATKAP UÇLU VİDA (YAN DİKME) | D164: 3,9*13 | F164: GR/AD | O164: 0 | P164: 0 | Q164: 0 | R164: 0
A165: MZ 400-012 | C165: 3,9*19 YSB VİDA (DÜZ KAPAK SABİTLEME) | D165: 3,9*19 | F165: GR/AD | O165: 0 | P165: 0 | Q165: 0 | R165: 0
A166: MZ 400-013 | C166: 3,9*32 YSB VİDA (90 DERECE KAPAK VİDASI) | D166: 3,9*32 | F166: GR/AD | O166: 0 | P166: 0 | Q166: 0 | R166: 0
A167: MZ 400-014 | C167: 3,9*13 YHB MATKAP UÇLU VİDA (ÜST ÇIKIŞ AĞZI) SİYAH | D167: 3,9*13
A168: MZ 400-015 | C168: 3,9*19 YHB MATKAP UÇLU VİDA (BOYNUZ TABAN BAĞLATI) | D168: 3,9*19
A169: MZ 400-016 | C169: 3,9*25 YHB MATKAPUÇLU VİDA (KİLİT) | D169: 3,9*25
A170: MZ 400-017 | C170: MONTAJ VİDASI | D170: 6*60 | F170: GR/AD | O170: 0 | P170: 0 | Q170: 0 | R170: 0
A171: MZ 400-018 | C171: MONTAJ VİDASI | D171: 6*120 | F171: GR/AD | O171: 0 | P171: 0 | Q171: 0 | R171: 0
A172: MZ 400-019 | C172: KİLİT BAĞLANTI İPİ | F172: GR/AD | O172: 0 | P172: 0 | Q172: 0 | R172: 0
A173: MZ 400-020 | C173: MARKİZZ KİMYASAL YAPIŞTIRICI | D173: 300ml | F173: GR/AD | O173: 0 | P173: 0 | Q173: 0 | R173: 0
A174: MZ 400-021 | C174: AMBALAJ POŞET-1 | D174: 19*25*7 mik | F174: GR/AD | O174: 300 | P174: 0 | Q174: 0.087 | R174: 26.1
A175: MZ 400-022 | C175: AMBALAJ POŞET-2 | D175: 15*18*7 mik | F175: GR/AD | O175: 600 | P175: 0 | Q175: 0.005 | R175: 30
A176: MZ 400-023 | C176: AMBALAJ POŞET-3 | D176: 11*14*7 mik | F176: GR/AD | O176: 1000 | P176: =E176*N176*O176 -> 0 | Q176: 0.028 | R176: 28
A177: MZ 400-024 | C177: AMBALAJ POŞET-4 | D177: 6*7*7 mik | F177: GR/AD | O177: 2000 | P177: =E177*N177*O177 -> 0 | Q177: 0.01 | R177: 20
A178: MZ 400-025 | C178: RÜZGAR KİLİDİ TK. | F178: GR/AD
A179: MZ 400-026 | C179: ÇARPMA KLİT DİL YAYI | F179: GR/AD
A180: MZ 400-027 | C180: ÇARPMA KİLİT DİL YAY PİMİ | F180: GR/AD | O180: 0 | P180: =SUM(P157:P175) -> 0 | Q180: TOPLAM | R180: =SUM(R157:R179) -> 56703.5
A181: MZ 400-028 | C181: KİLİTLİ NAYLON POŞET
A182: MZ 400-029 | C182: KARTON KUTU
A183: MZ 400-030 | C183: BOYNUZ BAĞLANTI PİMİ | F183: GR/AD | Q183: KDV %18
A184: MZ 400-031 | C184: A-RA SLIDE MAX KİLİT TK | F184: GR/AD | Q184: G. TOPLAM
A185: STOK KOD | B185: ÜRETİM KOD | C185: KANAT TAKIMI MZ 500-000 | D185: EBATLAR | E185: AĞIRLIK/MT | I185: GÖZ | J185: BASKI | K185: İŞÇİLİK | M185: RENK | N185: 1 BOY | O185: ADET | P185: AĞIRLIK | Q185: BİRİM FİYATI | R185: TUTAR
A186: MZ 500-010 | C186: A-RA 08 - 10 MENTEŞELİ KANAT TAKIMI | O186: 500 | P186: 0 | Q186: ='MENTEŞELİ KANAT TK'!J59 -> 55.67268069 | R186: =O186*Q186 -> 27836.34035
A187: MZ 500-010 | C187: A-RA 08 - 10 HAREKETLİ KANAT TAKIMI | O187: 100 | P187: =E187*N187*O187 -> 0 | Q187: ='HAREKETLİ KANAT TK'!J45 -> 50.98814242 | R187: =Q187*O187 -> 5098.814242
A188: MZ 500-030 | C188: A-RA 08 - 10 SABİT KANAT TAKIMI | O188: 10 | Q188: 100 | R188: 1000
A189: MZ 500-040 | C189: A-RA MAX MENTEŞELİ KANAT TAKIMI
A190: MZ 500-050 | C190: A-RA MAX HAREKETLİ KANAT TAKIMI
A191: MZ 500-060 | C191: A-RA MAX ISP.MENTEŞELİ KANAT TAKIMI
A192: MZ 500-070 | C192: A-RA MAX SABİT KANAT TAKIMI
A193: MZ 500-080 | C193: SLIDER HAREKETLİ KANAT TAKIMI
A194: POLYMID BASKI. GÜNLÜK 700BASKI X 8GÖZ=5600ADET/350TL.günlük= 0,062tl adet işçilik fiyatıdır.

Sheet ANASAYFA
J9: " CAM BALKONUN LOKOMOTİFİ "

Sheet MARKİZZ SİPARİŞ
B2: "cam balkonun lokomotifi"
B3: KOD | C3: ÖLÇÜ | D3: ÜRÜN ADI | E3: SİSTEM | F3: SEVKİYAT | I3: MT/FİYATI | J3: SİPARİŞ MİKTARI | N3: SİPARİŞ TARİHİ
F4: 5.35 | G4: 11.5 | H4: =F4*G4 -> 61.525 | J4: PRES | K4: SATİNE NATUREL | L4: MZ BRONZ MZ SİMLİ | M4: AHŞAP DESEN | N4: =TODAY() -> 2021-12-26
G5: 13 | J5: 0.9 | K5: 1 | L5: 1.2 | M5: 1.6 | N5: TUTARI
B6: MZ 100-010 | C6: 50*59,1 | D6: KONDENS KANALLI RAY PROFİLİ | E6: 08 - 08İ - 10 - TWIN MAX | F6: 6.5 | G6: 1.418 | H6: 1.25 | I6: =G6*H6*H4 -> 109.0530625 | N6: =((I6*J6)*J5)+((I6*K6)*K5)+((I6*L6)*L5)+((I6*M6)*M5) -> 0
B7: MZ 100-020 | C7: 55*58,5 | D7: AYAR PROFİLİ | E7: 08 - 08İ - 10 - TWIN MAX | F7: 6.5 | G7: 0.845 | H7: 1.25 | I7: =G7*H7*H4 -> 64.98578125 | N7: =((I7*J7)*J5)+((I7*K7)*K5)+((I7*L7)*L5)+((I7*M7)*M5) -> 0
B8: MZ 100-030 | C8: 36*52,6 | D8: YAN DİKME PROFİLİ | E8: 08 - 08İ - 10 - TWIN MAX | F8: 6.5 | G8: 0.515 | H8: 1.25 | I8: =G8*H8*H4 -> 39.60671875 | N8: =((I8*J8)*J5)+((I8*K8)*K5)+((I8*L8)*L5)+((I8*M8)*M5) -> 0
B9: MZ 100-031 | C9: 88,6*88,6 | D9: YAN DİKME 90* PROFİLİ | E9: 08 - 08İ - 10 - TWIN MAX | F9: 6.5 | G9: 1.169 | H9: 1.25 | I9: =G9*H9*H4 -> 89.90340625 | N9: =((I9*J9)*J5)+((I9*K9)*K5)+((I9*L9)*L5)+((I9*M9)*M5) -> 0
B10: MZ 100-040 | C10: 30*45 | D10: 08MM. KANAT PROFİLİ | E10: 08 - 08İ | F10: 6.5 | G10: 0.754 | H10: 1.25 | I10: =G10*H10*H4 -> 57.9873125 | N10: =((I10*J10)*J5)+((I10*K10)*K5)+((I10*L10)*L5)+((I10*M10)*M5) -> 0
B11: MZ 100-050 | C11: 30*45 | D11: 10MM. KANAT PROFİLİ | E11: 10 | F11: 6.5 | G11: 0.747 | H11: 1.25 | I11: =G11*H11*H4 -> 57.44896875 | N11: =((I11*J11)*J5)+((I11*K11)*K5)+((I11*L11)*L5)+((I11*M11)*M5) -> 0
B12: MZ 100-060 | C12: 30*33,8 | D12: TWIN MAX KANAT PROFİLİ | E12: TWIN MAX | F12: 6.5 | G12: 0.422 | H12: 1.25 | I12: =G12*H12*H4 -> 32.4544375 | N12: =((I12*J12)*J5)+((I12*K12)*K5)+((I12*L12)*L5)+((I12*M12)*M5) -> 0
B13: MZ 100-061 | C13: 30*46 | D13: TWIN MAX DOUBLE KANAT PROFİLİ | E13: TWIN MAX | F13: 6.5 | G13: 0.641 | H13: 1.25 | I13: =G13*H13*H4 -> 49.29690625 | N13: =((I13*J13)*J5)+((I13*K13)*K5)+((I13*L13)*L5)+((I13*M13)*M5) -> 0
B14: MZ 100-070 | C14: 14,2*27 | D14: 08İ MM. İSPANYOLET ADAPTÖR PROFİLİ | E14: 08İ | F14: 6.5 | G14: 0.271 | H14: 1.25 | I14: =G14*H14*H4 -> 20.84159375 | N14: =((I14*J14)*J5)+((I14*K14)*K5)+((I14*L14)*L5)+((I14*M14)*M5) -> 0
B15: MZ 100-080 | C15: 30*62,5 | D15: TWIN MAX İSPANYOLET PROFİLİ | E15: TWIN MAX -08İ | F15: 6.5 | G15: 0.624 | H15: 1.25 | I15: =G15*H15*H4 -> 47.9895 | N15: =((I15*J15)*J5)+((I15*K15)*K5)+((I15*L15)*L5)+((I15*M15)*M5) -> 0
B16: MZ 100-090 | C16: 30*32 | D16: TWIN MAX ARA DİKME PROFİLİ | E16: TWIN MAX -08İ | F16: 6.5 | G16: 0.347 | H16: 1.25 | I16: =G16*H16*H4 -> 26.68646875 | N16: =((I16*J16)*J5)+((I16*K16)*K5)+((I16*L16)*L5)+((I16*M16)*M5) -> 0
B17: MZ 100-091 | C17: 30*40 | D17: TWIN MAX ARA DİKME 90* PROFİLİ | E17: TWIN MAX | F17: 6.5 | G17: 0 | H17: 1.25 | I17: =G17*H17*H4 -> 0 | N17: =((I17*J17)*J5)+((I17*K17)*K5)+((I17*L17)*L5)+((I17*M17)*M5) -> 0
B18: MZ 100-100 | C18: 30*30,3 | D18: TWIN MAX ARA DİKME KARŞILIK PROFİLİ | E18: TWIN MAX | F18: 6.5 | G18: 0.37 | H18: 1.25 | I18: =G18*H18*H4 -> 28.4553125 | N18: =((I18*J18)*J5)+((I18*K18)*K5)+((I18*L18)*L5)+((I18*M18)*M5) -> 0
B19: MZ 100-101 | C19: 30*40 | D19: TWIN MAX ARA DİKME KARŞILIK 90* PROFİLİ | E19: TWIN MAX | F19: 6.5 | G19: 0 | H19: 1.25 | I19: =G19*H19*H4 -> 0 | N19: =((I19*J19)*J5)+((I19*K19)*K5)+((I19*L19)*L5)+((I19*M19)*M5) -> 0
B20: MZ 100-110 | C20: 30*35,2 | D20: TWIN MAX AÇILI BİRLEŞİM PROFİLİ | E20: TWIN MAX | F20: 6.5 | G20: 0.389 | H20: 1.25 | I20: =G20*H20*H4 -> 29.91653125 | N20: =((I20*J20)*J5)+((I20*K20)*K5)+((I20*L20)*L5)+((I20*M20)*M5) -> 0
B21: MZ 100-200 | C21: 43,4*96,9 | D21: SLIDE MAX RAY PROFİLİ | E21: SLIDE MAX | F21: 6.5 | G21: 1.396 | H21: 1.25 | I21: =G21*H21*H4 -> 107.361125 | N21: =((I21*J21)*J5)+((I21*K21)*K5)+((I21*L21)*L5)+((I21*M21)*M5) -> 0
B22: MZ 100-210 | C22: 37*44 | D22: SLIDE MAX EK RAY PROFİLİ | E22: SLIDE MAX | F22: 6.5 | G22: 0.563 | H22: 1.25 | I22: =G22*H22*H4 -> 43.29821875 | N22: =((I22*J22)*J5)+((I22*K22)*K5)+((I22*L22)*L5)+((I22*M22)*M5) -> 0
B23: MZ 100-220 | C23: 12*97 | D23: SLIDE MAX YAN DİKME PROFİLİ | E23: SLIDE MAX | F23: 6.5 | G23: 0.824 | H23: 1.25 | I23: =G23*H23*H4 -> 63.37075 | N23: =((I23*J23)*J5)+((I23*K23)*K5)+((I23*L23)*L5)+((I23*M23)*M5) -> 0
B24: MZ 100-230 | C24: 12*37 | D24: SLIDE MAX EK YAN DİKME PROFİLİ | E24: SLIDE MAX | F24: 6.5 | G24: 0.354 | H24: 1.25 | I24: =G24*H24*H4 -> 27.2248125 | N24: =((I24*J24)*J5)+((I24*K24)*K5)+((I24*L24)*L5)+((I24*M24)*M5) -> 0
B25: MZ 100-240 | C25: 24*95 | D25: SLIDE MAX KANAT BAZA PROFİLİ | E25: SLIDE MAX | F25: 6.5 | G25: 1.019 | H25: 1.25 | I25: =G25*H25*H4 -> 78.36746875 | N25: =((I25*J25)*J5)+((I25*K25)*K5)+((I25*L25)*L5)+((I25*M25)*M5) -> 0
B26: MZ 100-250 | C26: 34*36 | D26: SLIDE MAX ÇEKME PROFİLİ | E26: SLIDE MAX | F26: 6.5 | G26: 0.608 | H26: 1.25 | I26: =G26*H26*H4 -> 46.759 | N26: =((I26*J26)*J5)+((I26*K26)*K5)+((I26*L26)*L5)+((I26*M26)*M5) -> 0
B27: MZ 100-260 | C27: 27*65 | D27: SLIDE MAX KİLİT PROFİLİ | E27: SLIDE MAX | F27: 6.5 | G27: 0.723 | H27: 1.25 | I27: =G27*H27*H4 -> 55.60321875 | N27: =((I27*J27)*J5)+((I27*K27)*K5)+((I27*L27)*L5)+((I27*M27)*M5) -> 0
B28: MZ 100-270 | C28: 24*33 | D28: SLIDE MAX KİLİT KARŞILIĞI PROFİLİ | E28: SLIDE MAX | F28: 6.5 | G28: 0.477 | H28: 1.25 | I28: =G28*H28*H4 -> 36.68428125 | N28: =((I28*J28)*J5)+((I28*K28)*K5)+((I28*L28)*L5)+((I28*M28)*M5) -> 0
B29: MZ 100-280 | C29: 41*45 | D29: SLIDE MAX 90° KİLİT KARŞILIĞI PROFİLİ | E29: SLIDE MAX | F29: 6.5 | G29: 0.688 | H29: 1.25 | I29: =G29*H29*H4 -> 52.9115 | N29: =((I29*J29)*J5)+((I29*K29)*K5)+((I29*L29)*L5)+((I29*M29)*M5) -> 0
B30: MZ 100-290 | D30: SLIDE 08MM. ADAPTÖR PROFİLİ | E30: 08MM. | F30: 6.5 | G30: 0.35 | H30: 1.25 | I30: =G30*H30*H4 -> 26.9171875 | N30: =((I30*J30)*J5)+((I30*K30)*K5)+((I30*L30)*L5)+((I30*M30)*M5) -> 0
B31: MZ 100-400 | D31: ALUMİNYUM 8mm. MIKNATISLI FİTİL h | E31: 08 - 08İ | F31: 6.5 | G31: 0.15 | H31: 1.5 | I31: =G31*H31*H4 -> 13.843125 | N31: =((I31*K31)*K5)+((I31*L31)*L5)+((I31*M31)*M5) -> 0
B32: MZ 100-410 | D32: ALUMİNYUM 90° 8mm.MIKNATISLI FİTİL | E32: 08 - 08İ | F32: 6.5 | G32: 0.17 | H32: 1.5 | I32: =G32*H32*H4 -> 15.688875 | N32: =((I32*K32)*K5)+((I32*L32)*L55)+((I32*M32)*M5) -> 0
B33: MZ 100-420 | D33: ALUMİNYUM 135° 8mm.MIKNATISLI FİTİL | E33: 08 - 08İ | F33: 6.5 | G33: 0.17 | H33: 1.5 | I33: =G33*H33*H4 -> 15.688875 | N33: =((I33*K33)*K5)+((I33*L33)*L5)+((I33*M33)*M5) -> 0
B34: MZ 100-401 | D34: L KAPAMA PROFİLİ 20*20*1,2 | E34: 08 - 08İ - 10 - TWIN MAX-SLIDE MAX | F34: 6.5 | G34: 0.128 | H34: 1.5 | I34: =G34*H34*H4 -> 11.8128 | N34: =((I34*J34)*J5)+((I34*K34)*K5)+((I34*L34)*L5)+((I34*M34)*M5) -> 0
B35: MZ 100-402 | D35: L KAPAMA PROFİLİ 20*40*1,2 | E35: 08 - 08İ - 10 - TWIN MAX-SLIDE MAX | F35: 6.5 | G35: 0.192 | H35: 1.5 | I35: =G35*H35*H4 -> 17.7192 | N35: =((I35*J35)*J5)+((I35*K35)*K5)+((I35*L35)*L5)+((I35*M35)*M5) -> 0
B36: MZ 100-403 | D36: L KAPAMA PROFİLİ 20*60*1,2 | E36: 08 - 08İ - 10 - TWIN MAX-SLIDE MAX | F36: 6.5 | G36: 0.256 | H36: 1.5 | I36: =G36*H36*H4 -> 23.6256 | N36: =((I36*J36)*J5)+((I36*K36)*K5)+((I36*L36)*L5)+((I36*M36)*M5) -> 0
D37: ALUMİNYUM GRUBU | J37: 0 | K37: =N37-(N37*J37) -> 0 | N37: =SUM(N6:N36) -> 0
B38: MZ 500-010 | D38: 08MM. MENTEŞELİ KANAT TAKIMI | E38: 08 - 08İ - 10 - | F38: 40 | G38: 4.25 | H38: 2 | I38: =G38*H38*G5 -> 110.5 | N38: =I38*J38 -> 0
B39: MZ 500-020 | D39: 08MM. HAREKETLİ KANAT TAKIMI | E39: 08 - 08İ - 10 - | F39: 40 | G39: 4.67 | H39: 2 | I39: =G39*H39*G5 -> 121.42 | N39: 0
B40: MZ 500-030 | D40: 08MM. SABİT KANAT TAKIMI | E40: 08 - 08İ - 10 - | F40: 40 | G40: 1.11 | H40: 3 | I40: =G40*H40*G5 -> 43.29 | N40: 0
B41: MZ 500-050 | D41: TWIN MAX MENTEŞELİ KANAT TAKIMI | E41: TWIN MAX | F41: 40 | G41: 3.88 | H41: 2 | I41: =G41*H41*G5 -> 100.88 | N41: 0
B42: MZ 500-060 | D42: TWIN MAX HAREKETLİ KANAT TAKIMI | E42: TWIN MAX | F42: 40 | G42: 4.43 | H42: 2 | I42: =G42*H42*G5 -> 115.18 | N42: 0
B43: MZ 500-080 | D43: TWIN MAX İSPANYOLET KANAT TAKIMI | E43: TWIN MAX 08İ | F43: 40 | G43: 5.61 | H43: 3 | I43: =G43*H43*G5 -> 218.79 | N43: 0
B44: MZ 500-070 | D44: TWIN MAX SABİT KANAT TAKIMI | E44: TWIN MAX 08İ | F44: 40 | G44: 0.92 | H44: 3 | I44: =G44*H44*G5 -> 35.88 | N44: 0
B45: MZ 500-100 | D45: SLIDE MAX KANAT TEKER TAKIMI | E45: SLIDE MAX | F45: 40 | G45: 4.67 | H45: 3 | I45: =G45*H45*G5 -> 182.13 | N45: 0
B46: MZ 500-500 | D46: SLIDE MAX KİLİT TAKIMI | E46: SLIDE MAX | F46: 40 | G46: 2.44 | H46: 3 | I46: =G46*H46*G5 -> 95.16 | N46: 0
N47: 0
D48: KANAT TAKIMI GRUBU | J48: 0 | K48: =N48-(N48*J48) -> 0 | N48: =SUM(N38:N46) -> 0
B50: MZ 500-540 | D50: KANAT SABİTLEME MIKNATIS TAKIMI | E50: 08 - 08İ - 10 - TWIN MAX | F50: PAKET | G50: 0.8 | H50: 2 | I50: =G50*H50*G5 -> 20.8 | N50: =I50*J50 -> 0
B51: MZ 500-530 | C51: 1037 | D51: RÜZGAR KİLİT TAKIMI-KAPLAMALI METAL | E51: 08 - 08İ - 10 - TWIN MAX | F51: PAKET | G51: 1.731 | H51: 3 | I51: =G51*H51*G5 -> 67.509 | N51: 0
B52: MZ 200- 140/150 | C52: 30*45 | D52: DÜZ BİRLEŞİM DÖRTLÜ KAPAK TAKIMI | E52: 08 - 08İ - 10 - | F52: PAKET | G52: 0.252 | H52: 2 | I52: =G52*H52*G5 -> 6.552 | N52: 0
B53: MZ 200- 10/11/12/13 | C53: 30*36*45 | D53: 90* BİRLEŞİM DÖRTLÜ KAPAK TAKIMI | E53: 08 - 08İ - 10 - | F53: PAKET | G53: 0.469 | H53: 2 | I53: =G53*H53*G5 -> 12.194 | N53: 0
B54: MZ 200- 16/17/18/19 | C54: 17*33*45 | D54: 135* BİRLEŞİM DÖRTLÜ KAPAK TAKIMI | E54: 08 - 08İ - 10 - | F54: PAKET | G54: 0.328 | H54: 2 | I54: =G54*H54*G5 -> 8.528 | N54: 0
B55: MZ 300-004 | C55: 3*30*90 | D55: AÇILI BİRLEŞİM LAMEL TAKIMI | E55: 08 - 08İ - 10 - TWIN MAX | F55: PAKET | G55: 0.356 | H55: 2 | I55: =G55*H55*G5 -> 9.256 | N55: 0
B56: MZ 200-300 | C56: 0 | D56: KIL FIRÇA 48*0450 | E56: SLIDE MAX | F56: RULO | G56: 0.033 | H56: 1.75 | I56: =G56*H56*G5 -> 0.75075 | N56: 0
B57: MZ 200-310 | C57: 0 | D57: KIL FIRÇA 48*0800 | E57: 08 - 08İ - 10 - TWIN MAX | F57: RULO | G57: 0.05 | H57: 1.75 | I57: =G57*H57*G5 -> 1.1375 | N57: 0
B58: MZ 200-320 | C58: 0 | D58: KIL FIRÇA 48*1000 | E58: 08 - 08İ - 10 - TWIN MAX | F58: RULO | G58: 0.065 | H58: 1.75 | I58: =G58*H58*G5 -> 1.47875 | N58: 0
B59: MZ 200-420 | C59: 10*14 | D59: YAN DİKME CONTASI | E59: 08 - 08İ - 10 - TWIN MAX | F59: RULO | G59: 0.3 | H59: 1.5 | I59: =G59*H59*G5 -> 5.85 | N59: 0
B60: MZ 200-440 | C60: 8*15 | D60: TWIN MAX ARA DİKME KARŞILIK CONTASI | E60: TWIN MAX | F60: RULO | G60: 0.356 | H60: 1.5 | I60: =G60*H60*G5 -> 6.942 | N60: 0
B61: MZ 200-400 | C61: 5,4*11 | D61: TWIN MAX ARA DİKME PROFİLİ İÇ CONTA | E61: TWIN MAX | F61: RULO | G61: 0.177 | H61: 1.5 | I61: =G61*H61*G5 -> 3.4515 | N61: 0
B62: MZ 200-410 | C62: 7*12 | D62: TWIN MAX ARA DİKME PROFİLİ DIŞ CONTA | E62: TWIN MAX | F62: RULO | G62: 0.3 | H62: 1.5 | I62: =G62*H62*G5 -> 5.85 | N62: 0
B63: MZ 200-430 | C63: 6*7 | D63: KANAT DIŞ-İZOLASYON CONTASI | E63: 08 -08İ- 10 - TWIN MAX | F63: RULO | G63: 0.146 | H63: 1.5 | I63: =G63*H63*G5 -> 2.847 | N63: 0
B64: MZ 200-500 | C64: R5 | D64: SLIDE MAX ÇEKME PROFİL FİTİLİ | E64: SLIDE MAX | F64: RULO | G64: 0.123 | H64: 1.5 | I64: =G64*H64*G5 -> 2.3985 | N64: 0
B65: MZ 200-370 | D65: ALUMİNYUM 8mm. MIKNATISLI FİTİL h | E65: 08 - 08İ | F65: 6.5 | G65: 0.1 | H65: 0 | I65: =G65*H65*H4 -> 0 | N65: 0
B66: MZ 200-371 | D66: ALUMİNYUM 90° 8mm.MIKNATISLI FİTİL | E66: 08 - 08İ | F66: 6.5 | G66: 0.15 | H66: 0 | I66: =G66*H66*H4 -> 0 | N66: 0
B67: MZ 200-372 | D67: ALUMİNYUM 135° 8mm.MIKNATISLI FİTİL | E67: 08 - 08İ | F67: 6.5 | G67: 0.2 | H67: 0 | I67: =G67*H67*H4 -> 0 | N67: 0
G68: 0 | H68: 0 | I68: =G68*H68*G5 -> 0 | N68: 0
G69: 0 | H69: 0 | I69: =G69*H69*G5 -> 0 | N69: 0
B70: MZ 400-020 | D70: POLİÜRETAN NÖTÜR YAP.KİMYASALI(300 ml.) | E70: 08 - 08İ - 10 - TWIN MAX-SLIDE MAX | F70: ADET | G70: 0 | H70: 0 | I70: =G70*H70*G5 -> 0 | N70: 0
D71: HIRDAVAT GRUBU | J71: 0 | K71: =N71-(N71*J71) -> 0 | N71: =SUM(N46:N70) -> 0
D73: Ö D E M E Ç İ Z E L G E S İ
J74: NAKİT SATIŞ | N74: =K37+K48+K71 -> 0
L75: 0 | N75: =N74*L75 -> 0
J76: ARA TOPLAM | N76: =N74-N75 -> 0
J77: KDV | K77: 0.18 | N77: =N76*K77 -> 0
J78: PEŞİN ÖDEME | N78: =N76+N77 -> 0
B79: 0.09 | D79: TARİH | E79: VERİLECEK ÇEKLER | J79: VADELİ SATIŞ (%9,00) | N79: =N76+(N76*B79) -> 0
B80: 1.ÖDEME | D80: =TODAY()+30 -> 2022-01-25 | E80: =N82/3 -> 0
B81: 2.ÖDEME | D81: =TODAY()+60 -> 2022-02-24 | E81: =N82/3 -> 0 | J81: KDV | K81: 0.18 | N81: =N79*K81 -> 0
B82: 3.ÖDEME | D82: =TODAY()+90 -> 2022-03-26 | E82: =N82/3 -> 0 | J82: 90 GÜNLÜK ÖDEME | N82: =SUM(N79:N81) -> 0
B83: 0.15 | D83: TARİH | E83: VERİLECEK ÇEKLER | J83: VADELİ SATIŞ (%15,00) | N83: =N76+(N76*B83) -> 0
B84: 1.ÖDEME | D84: =TODAY()+30 -> 2022-01-25 | E84: =N86/5 -> 0
B85: 2.ÖDEME | D85: =TODAY()+60 -> 2022-02-24 | E85: =N86/5 -> 0 | J85: KDV | K85: 0.18 | N85: =N83*K85 -> 0
B86: 3.ÖDEME | D86: =TODAY()+90 -> 2022-03-26 | E86: =N86/5 -> 0 | J86: 150 GÜNLÜK ÖDEME | N86: =SUM(N83:N85) -> 0
B87: 4.ÖDEME | D87: =TODAY()+120 -> 2022-04-25 | E87: =N86/5 -> 0
B88: 5.ÖDEME | D88: =TODAY()+150 -> 2022-05-25 | E88: =N86/5 -> 0
B89: KDV HARİÇ, NAKİT ÖDEME İSKONTO: 1): 300.000TL ÜZERİ % 2): 600.000TL. ÜZERİ % 3): 1.000.000TL. ÜZERİ %
B90: MARKİZZ ARGE TASARIM VE İNŞAAT TAAHHÜT SAN. A.Ş. BALIKESİR ZİRAAT BANK İBAN NO : TR87 0001 0000 4596 2239 9950 01 (R) KADİR ALOĞLU BALIKESİR İŞ BANKASI İBAN NO : TR55 0006 4000 0012 1310 1403 34 (GR)

Sheet A-RA 08 MALİYET
B2: " Cam Balkonun Lokomotifi"
G3: GENİŞLİK L | H3: YÜKSEKLİK H
G4: 6500 | H4: 1800
B5: STOK KOD | C5: ÜRÜN AÇIKLAMASI | D5: ÖLÇÜ | E5: MİKTAR | F5: BİRİM | G5: BİRİM FİYATI | H5: TOPLAM FİYAT
B6: MZ 100-010 | C6: KONDENS KANALLI RAY PROFİLİ | D6: 50*59,1 | E6: =(G4*2)/1000 -> 13 | F6: Mt. | G6: ='MARKİZZ SİPARİŞ'!I6 -> 109.0530625 | H6: =E6*G6 -> 1417.689813
B7: MZ 100-020 | C7: AYAR PROFİLİ VARSA, KUTUYA 1 YAZIN | D7: 55*58,5 | E7: =((G4-2.4)/1000) -> 6.4976 | F7: Mt. | G7: ='MARKİZZ SİPARİŞ'!I7 -> 64.98578125 | H7: 0
B8: MZ 100-040 | C8: 08MM. KANAT PROFİLİ | D8: 30*45 | E8: =(G4*2)/1000 -> 13 | F8: Mt. | G8: ='MARKİZZ SİPARİŞ'!I10 -> 57.9873125 | H8: =E8*G8 -> 753.8350625
B9: MZ 100-030 | C9: YAN DİKME PROFİLİ | D9: 36*52,6 | E9: =(H4*2)/1000+H7*0.06 -> 3.6 | F9: Mt. | G9: ='MARKİZZ SİPARİŞ'!I8 -> 39.60671875 | H9: 142.5841875
B10: MZ 200-420 | C10: YAN DİKME CONTASI | D10: 10*14 | E10: =(H4-129)*2/1000 -> 3.342 | F10: Mt. | G10: ='MARKİZZ SİPARİŞ'!I59 -> 5.85 | H10: 19.5507
B11: MZ 200-320 | C11: KIL FIRÇA | D11: 48*1000 | E11: =(G4*3)/1000 -> 19.5 | F11: Mt. | G11: ='MARKİZZ SİPARİŞ'!I58 -> 1.47875 | H11: 28.835625
B12: MZ 200-430 | C12: KANAT DIŞ İZOLASYON CONTASI | D12: 6*7 | E12: =(G4*1)/1000 -> 6.5 | F12: Mt. | G12: ='MARKİZZ SİPARİŞ'!I63 -> 2.847 | H12: 18.5055
B13: MZ 100-400 | C13: ALUMİNYUM 08MM. FİTİL h | D13: 12*24 | E13: =(H4-158-60)*((E16+E17+E18)-1)/1000 -> 14.238 | F13: Mt. | G13: ='MARKİZZ SİPARİŞ'!I31 -> 13.843125 | H13: 197.0984137
B14: ='[1]FİYAT LİSTESİ'!C12 -> MZ 300-004 | C14: AÇILI BİRLEŞİM LAMEL TAKIMI | D14: ='[1]FİYAT LİSTESİ'!E12 -> 3x30x90 | E14: 0 | F14: Adet | G14: ='MARKİZZ SİPARİŞ'!I55 -> 9.256 | H14: =E14*G14 -> 0
B15: SİSTEM BRÜT MALİYETİ | H15: =(H13+H12+H11+H10+H9+H8+H6+H14)+(E7*G7)*H7 -> 2578.099301
B16: MZ 500-010 | C16: 08MM. MENTEŞELİ KANAT TAKIMI | E16: 2 | F16: Tk. | G16: ='MARKİZZ SİPARİŞ'!I38 -> 110.5 | H16: 221
B17: MZ 500-020 | C17: 08MM. HAREKETLİ KANAT TAKIMI | E17: 8 | F17: Tk. | G17: ='MARKİZZ SİPARİŞ'!I39 -> 121.42 | H17: 971.36
B18: MZ 500-030 | C18: 08MM. SABİT KANAT TAKIMI | E18: 0 | F18: Tk. | G18: ='MARKİZZ SİPARİŞ'!I40 -> 43.29 | H18: =E18*G18 -> 0
B19: KANAT TAKIMLARI BRÜT MALİYETİ | H19: =SUM(H16:H18) -> 1192.36
B20: MİKTARSAL İSKONTO | G20: 0 | H20: =(H15+H19)*G20 -> 0
B21: 08MM. TEMPER + RODAJLI CAM m² FİYATI | E21: =(H4-158)*G4/1000000 -> 10.673 | F21: m² | G21: 300 | H21: 3201.9
B22: 08MM. TEMPERLİ CAMA Ø 10 mm. DELİK AÇMA FARKI | E22: =(E16+E17+E18)*H23*4 -> 0 | F22: Adet | G22: 0 | H22: 0
B23: CAMLARI DELİKLİ OLARAK ÜRETİM YAPMAK İSTİYORSANIZ, KUTUYA 1 YAZINIZ | H23: 0
B24: m² Bazında CAMLI Sistem maliyeti | F24: KDV HARİÇ | G24: =(H15+H19+H21+H22)-H20 -> 6972.359301
G25: =G24/((G4*H4)/1000000) -> 595.9281454
B26: m² Bazında CAMSIZ Sistem maliyeti | G26: =(H15+H19)-H20 -> 3770.459301
G27: =G26/((G4*H4)/1000000) -> 322.2614787
B28: TEMPER CAM FİYATLARINDA, PİYASA FİYATLARI ESAS ALINMIŞTIR.
B29: NET İMALAT MALİYETİ HESAPLAMASIDIR. İMALATTA KULLANILACAK YARDIMCI MALZEMELER DİKKATE ALINMAMIŞTIR. TÜKETİCİ FİYATLARI VERİLİRKEN BU HUSUSLARIN DİKKATE ALINMASI GEREKİR.

Sheet A-RA 08 SATIŞ
B2: " Cam Balkonun Lokomotifi"
G3: GENİŞLİK L | H3: YÜKSEKLİK H
G4: 6500 | H4: 1800
B5: STOK KOD | C5: ÜRÜN AÇIKLAMASI | D5: ÖLÇÜ | E5: MİKTAR | F5: BİRİM | G5: BİRİM FİYATI | H5: TOPLAM FİYAT
B6: MZ 100-010 | C6: KONDENS KANALLI RAY PROFİLİ | D6: 50*59,1 | E6: =(G4*2)/1000 -> 13 | F6: Mt. | G6: ='MARKİZZ SİPARİŞ'!I6 -> 109.0530625 | H6: =E6*G6 -> 1417.689813
B7: MZ 100-020 | C7: AYAR PROFİLİ VARSA, KUTUYA 1 YAZIN | D7: 55*58,5 | E7: =((G4-2.4)/1000) -> 6.4976 | F7: Mt. | G7: ='MARKİZZ SİPARİŞ'!I7 -> 64.98578125 | H7: 0
B8: MZ 100-040 | C8: 08MM. KANAT PROFİLİ | D8: 30*45 | E8: =(G4*2)/1000 -> 13 | F8: Mt. | G8: ='MARKİZZ SİPARİŞ'!I10 -> 57.9873125 | H8: =E8*G8 -> 753.8350625
B9: MZ 100-030 | C9: YAN DİKME PROFİLİ | D9: 36*52,6 | E9: =(H4*2)/1000+H7*0.06 -> 3.6 | F9: Mt. | G9: ='MARKİZZ SİPARİŞ'!I8 -> 39.60671875 | H9: 142.5841875
B10: MZ 200-420 | C10: YAN DİKME CONTASI | D10: 10*14 | E10: =(H4-129)*2/1000 -> 3.342 | F10: Mt. | G10: ='MARKİZZ SİPARİŞ'!I59 -> 5.85 | H10: 19.5507
B11: MZ 200-320 | C11: KIL FIRÇA | D11: 48*1000 | E11: =G4*3/1000 -> 19.5 | F11: Mt. | G11: ='MARKİZZ SİPARİŞ'!I58 -> 1.47875 | H11: 28.835625
B12: MZ 200-430 | C12: KANAT DIŞ İZOLASYON CONTASI | D12: 6*7 | E12: =G4*1/1000 -> 6.5 | F12: Mt. | G12: ='MARKİZZ SİPARİŞ'!I63 -> 2.847 | H12: 18.5055
B13: MZ 100-400 | C13: ALUMİNYUM 08MM. FİTİL h | D13: 12*24 | E13: =(H4-158-60)*((E16+E17+E18)-1)/1000 -> 14.238 | F13: Mt. | G13: ='MARKİZZ SİPARİŞ'!I31 -> 13.843125 | H13: 197.0984137
B14: ='[1]FİYAT LİSTESİ'!C12 -> MZ 300-004 | C14: AÇILI BİRLEŞİM LAMEL TAKIMI | D14: ='[1]FİYAT LİSTESİ'!E12 -> 3x30x90 | E14: 0 | F14: Adet | G14: ='MARKİZZ SİPARİŞ'!I55 -> 9.256 | H14: =E14*G14 -> 0
B15: SİSTEM BRÜT MALİYETİ | H15: =(H14+H13+H12+H11+H10+H9+H8+H6)+(E7*G7)*H7 -> 2578.099301
B16: MZ 500-010 | C16: 08MM. MENTEŞELİ KANAT TAKIMI | E16: 2 | F16: Tk. | G16: ='MARKİZZ SİPARİŞ'!I38 -> 110.5 | H16: 221
B17: MZ 500-020 | C17: 08MM. HAREKETLİ KANAT TAKIMI | E17: 8 | F17: Tk. | G17: ='MARKİZZ SİPARİŞ'!I39 -> 121.42 | H17: 971.36
B18: MZ 500-030 | C18: 08MM. SABİT KANAT TAKIMI | E18: 0 | F18: Tk. | G18: ='MARKİZZ SİPARİŞ'!I40 -> 43.29 | H18: =E18*G18 -> 0
B19: KANAT TAKIMLARI" BRÜT MALİYETİ | H19: =SUM(H16:H18) -> 1192.36
B20: MİKTARSAL İSKONTO | G20: 0 | H20: =(H15+H19)*G20 -> 0
B21: 08MM. CAM TEMPER + RODAJ CAM m² FİYATI | E21: =(H4-158)*G4/1000000 -> 10.673 | F21: m² | G21: 300 | H21: 3201.9
B22: 08MM. TEMPERLİ CAMA Ø 10 mm. DELİK AÇMA FARKI | E22: =(E16+E17+E18)*H23*4 -> 0 | F22: Adet | G22: 0 | H22: 0
B23: CAMLARI DELİKLİ OLARAK ÜRETİM YAPMAK İSTİYORSANIZ, KUTUYA 1 YAZINIZ | H23: 0
B24: MÜŞTERİ SATIŞ VE MONTAJ ORANI | G24: 0.7 | H24: =((H22+H21)-(H20)+(H19+H15))*G24 -> 4880.651511
B25: m² Bazında CAMLI Sistem Satış Fiyatı | F25: KDV HARİÇ | G25: =H15+H19+H21+H22+H24 -> 11853.01081
G26: =G25/((G4*H4)/1000000) -> 1013.077847
B27: TEMPER CAM FİYATLARINDA, PİYASA FİYATLARI ESAS ALINMIŞTIR.
B28: NET İMALAT MALİYETİ HESAPLAMASIDIR. İMALATTA KULLANILACAK YARDIMCI MALZEMELER DİKKATE ALINMAMIŞTIR. TÜKETİCİ FİYATLARI VERİLİRKEN BU HUSUSLARIN DİKKATE ALINMASI GEREKİR.

Sheet A-RA 10 MALİYET
B2: " Cam Balkonun Lokomotifi"
G3: GENİŞLİK L | H3: YÜKSEKLİK H
G4: 6500 | H4: 1800
B5: STOK KOD | C5: ÜRÜN AÇIKLAMASI | D5: ÖLÇÜ | E5: MİKTAR | F5: BİRİM | G5: BİRİM FİYATI | H5: TOPLAM FİYAT
B6: MZ 100-010 | C6: KONDENS KANALLI RAY PROFİLİ | D6: 50*59,1 | E6: =(G4*2)/1000 -> 13 | F6: Mt. | G6: ='MARKİZZ SİPARİŞ'!I6 -> 109.0530625 | H6: =E6*G6 -> 1417.689813
B7: MZ 100-020 | C7: AYAR PROFİLİ VARSA, KUTUYA 1 YAZIN | D7: 55*58,5 | E7: =((G4-2.4)*1)/1000 -> 6.4976 | F7: Mt. | G7: ='MARKİZZ SİPARİŞ'!I7 -> 64.98578125 | H7: 0
B8: MZ 100-050 | C8: 10MM. KANAT PROFİLİ | D8: 30*45 | E8: =(G4*2)/1000 -> 13 | F8: Mt. | G8: ='MARKİZZ SİPARİŞ'!I11 -> 57.44896875 | H8: =E8*G8 -> 746.8365938
B9: MZ 100-030 | C9: YAN DİKME PROFİLİ | D9: 36*52,6 | E9: =((H4*2)/1000)+H7*0.06 -> 3.6 | F9: Mt. | G9: ='MARKİZZ SİPARİŞ'!I8 -> 39.60671875 | H9: 142.5841875
B10: MZ 200-420 | C10: YAN DİKME CONTASI | D10: 10*14 | E10: =((H4-129)*2/1000) -> 3.342 | F10: Mt. | G10: ='MARKİZZ SİPARİŞ'!I59 -> 5.85 | H10: 19.5507
B11: MZ 200-320 | C11: KIL FIRÇA | D11: 48*1000 | E11: =G4*3/1000 -> 19.5 | F11: Mt. | G11: ='MARKİZZ SİPARİŞ'!I58 -> 1.47875 | H11: 28.835625
B12: MZ 200-430 | C12: KANAT DIŞ İZOLASYON CONTASI | D12: 6*7 | E12: =G4*1/1000 -> 6.5 | F12: Mt. | G12: ='MARKİZZ SİPARİŞ'!I63 -> 2.847 | H12: 18.5055
B13: MZ 100-401 | C13: ALUMİNYUM 10MM.FİTİL | D13: 12*24 | E13: =(H4-158-60)*((E16+E17+E18)-1)/1000 -> 14.238 | F13: Mt. | G13: ='MARKİZZ SİPARİŞ'!I31*1.5 -> 20.7646875 | H13: 295.6476206
B14: MZ 300-004 | C14: AÇILI BİRLEŞİM LAMEL TAKIMI | D14: 3*30*90 | E14: 0 | F14: Adet | G14: ='MARKİZZ SİPARİŞ'!I55 -> 9.256 | H14: =E14*G14 -> 0
B15: SİSTEM BRÜT MALİYETİ | H15: =H14+H13+H12+H11+H10+H9+H8+H6+((E7*G7)*H7) -> 2669.650039
B16: MZ 500-010 | C16: 10MM. MENTEŞELİ KANAT TAKIMI | E16: 2 | F16: Tk. | G16: ='MARKİZZ SİPARİŞ'!I38 -> 110.5 | H16: 221
B17: MZ 500-020 | C17: 10MM. HAREKETLİ KANAT TAKIMI | E17: 8 | F17: Tk. | G17: ='MARKİZZ SİPARİŞ'!I39 -> 121.42 | H17: 971.36
B18: MZ 500-030 | C18: 10MM. SABİT KANAT TAKIMI | E18: 0 | F18: Tk. | G18: ='MARKİZZ SİPARİŞ'!I40 -> 43.29 | H18: =E18*G18 -> 0
B19: KANAT TAKIMLARI" BRÜT MALİYETİ | H19: =SUM(H16:H18) -> 1192.36
B20: MİKTARSAL İSKONTO | G20: 0 | H20: =(H15+H19)*G20 -> 0
B21: 10MM. TEMPER + RODAJ CAMLI m² FİYATI | E21: =(H4-158)*G4/1000000 -> 10.673 | F21: m² | G21: 350 | H21: 3735.55
B22: 10MM. TEMPERLİ CAMA Ø 10 mm. DELİK AÇMA FARKI | E22: =(E16+E17+E18)*H23*4 -> 0 | F22: Adet | G22: 0 | H22: 0
B23: CAMLARI DELİKLİ OLARAK ÜRETİM YAPMAK İSTİYORSANIZ, KUTUYA 1 YAZINIZ | H23: 0
B24: m² Bazında CAMLI Sistem maliyeti | F24: KDV HARİÇ | G24: =(H15+H19+H21+H22)-H20 -> 7597.560039
G25: =G24/((G4*H4)/1000000) -> 649.3641059
B26: m² Bazında CAMSIZ Sistem maliyeti | G26: =(H15+H19)-H20 -> 3862.010039
G27: =G26/((G4*H4)/1000000) -> 330.0863282
B28: TEMPER CAM FİYATLARINDA, PİYASA FİYATLARI ESAS ALINMIŞTIR.
B29: NET İMALAT MALİYETİ HESAPLAMASIDIR. İMALATTA KULLANILACAK YARDIMCI MALZEMELER DİKKATE ALINMAMIŞTIR. TÜKETİCİ FİYATLARI VERİLİRKEN BU HUSUSLARIN DİKKATE ALINMASI GEREKİR.

Sheet A-RA 10 SATIŞ
B2: " Cam Balkonun Lokomotifi"
G3: GENİŞLİK L | H3: YÜKSEKLİK H
G4: 6500 | H4: 1800
B5: STOK KOD | C5: ÜRÜN AÇIKLAMASI | D5: ÖLÇÜ | E5: MİKTAR | F5: BİRİM | G5: BİRİM FİYATI | H5: TOPLAM FİYAT
B6: MZ 100-010 | C6: KONDENS KANALLI RAY PROFİLİ | D6: 50*59,1 | E6: =(G4*2)/1000 -> 13 | F6: Mt. | G6: ='MARKİZZ SİPARİŞ'!I6 -> 109.0530625 | H6: =E6*G6 -> 1417.689813
B7: MZ 100-020 | C7: AYAR PROFİLİ VARSA, KUTUYA 1 YAZIN | D7: 55*8,5 | E7: =((G4-2.4)/1000) -> 6.4976 | F7: Mt. | G7: ='MARKİZZ SİPARİŞ'!I7 -> 64.98578125 | H7: 0
B8: MZ 100-050 | C8: 10MM. KANAT PROFİLİ | D8: 30*45 | E8: =(G4*2)/1000 -> 13 | F8: Mt. | G8: ='MARKİZZ SİPARİŞ'!I11 -> 57.44896875 | H8: =E8*G8 -> 746.8365938
B9: MZ 100-030 | C9: YAN DİKME PROFİLİ | D9: 36*52,6 | E9: =((H4*2)/1000)+H7*0.06 -> 3.6 | F9: Mt. | G9: ='MARKİZZ SİPARİŞ'!I8 -> 39.60671875 | H9: 142.5841875
B10: MZ 200-420 | C10: YAN DİKME CONTASI | D10: 10*14 | E10: =((H4-129)*2/1000) -> 3.342 | F10: Mt. | G10: ='MARKİZZ SİPARİŞ'!I59 -> 5.85 | H10: 19.5507
B11: MZ 200-320 | C11: KIL FIRÇA | D11: 48*1000 | E11: =G4*3/1000 -> 19.5 | F11: Mt. | G11: ='MARKİZZ SİPARİŞ'!I58 -> 1.47875 | H11: 28.835625
B12: MZ 200-430 | C12: KANAT DIŞ İZOLASYON CONTASI | D12: 6*7 | E12: =G4*1/1000 -> 6.5 | F12: Mt. | G12: ='MARKİZZ SİPARİŞ'!I63 -> 2.847 | H12: 18.5055
B13: MZ 100-401 | C13: ALUMİNYUM 10MM. FİTİL | D13: 12*24 | E13: =(H4-158-60)*((E16+E17+E18)-1)/1000 -> 14.238 | F13: Mt. | G13: ='MARKİZZ SİPARİŞ'!I31*1.5 -> 20.7646875 | H13: 295.6476206
B14: ='[1]FİYAT LİSTESİ'!C12 -> MZ 300-004 | C14: AÇILI BİRLEŞİM LAMEL TAKIMI | D14: ='[1]FİYAT LİSTESİ'!E12 -> 3x30x90 | E14: 0 | F14: Adet | G14: ='MARKİZZ SİPARİŞ'!I55 -> 9.256 | H14: =E14*G14 -> 0
B15: SİSTEM BRÜT MALİYETİ | H15: =H14+H13+H12+H11+H10+H9+H8+H6+((E7*G7)*H7) -> 2669.650039
B16: MZ 500-010 | C16: 10MM. MENTEŞELİ KANAT TAKIMI | E16: 2 | F16: Tk. | G16: ='MARKİZZ SİPARİŞ'!I38 -> 110.5 | H16: 221
B17: MZ 500-020 | C17: 10MM. HAREKETLİ KANAT TAKIMI | E17: 8 | F17: Tk. | G17: ='MARKİZZ SİPARİŞ'!I39 -> 121.42 | H17: 971.36
B18: MZ 500-030 | C18: 10MM. SABİT KANAT TAKIMI | E18: 0 | F18: Tk. | G18: ='MARKİZZ SİPARİŞ'!I40 -> 43.29 | H18: =E18*G18 -> 0
B19: KANAT TAKIMLARI BRÜT MALİYETİ | H19: =SUM(H16:H18) -> 1192.36
B20: MİKTARSAL İSKONTO | G20: 0 | H20: =(H15+H19)*G20 -> 0
B21: 10 mm. CAM TEMPER + RODAJLI CAM m² FİYATI | E21: =(H4-158)*G4/1000000 -> 10.673 | F21: m² | G21: 333 | H21: 3554.109
B22: 10 mm. TEMPERLİ CAMA Ø 10 mm. DELİK AÇMA FARKI | E22: 0 | F22: Adet | G22: 0 | H22: 0
B23: CAMLARI DELİKLİ OLARAK ÜRETİM YAPMAK İSTİYORSANIZ, KUTUYA 1 YAZINIZ | H23: 0
B24: MÜŞTERİ SATIŞ VE MONTAJ ORANI | G24: 0.7 | H24: =(H15+H19+H21+H22)*G24 -> 5191.283328
B25: m² Bazında CAMLI Sistem Satış Fiyatı | F25: KDV HARİÇ | G25: =((H15+H19)-(H20)+(H21+H22+H24)) -> 12607.40237
G26: =G25/((G4*H4)/1000000) -> 1077.555758
B27: TEMPER CAM FİYATLARINDA, PİYASA FİYATLARI ESAS ALINMIŞTIR.
B28: NET İMALAT MALİYETİ HESAPLAMASIDIR. İMALATTA KULLANILACAK YARDIMCI MALZEMELER DİKKATE ALINMAMIŞTIR. TÜKETİCİ FİYATLARI VERİLİRKEN BU HUSUSLARIN DİKKATE ALINMASI GEREKİR.

Sheet A-RA MAX
B2: " Cam Balkonun Lokomotifi"
G3: GENİŞLİK L | H3: YÜKSEKLİK H
G4: 6500 | H4: 1800
B5: STOK KOD | C5: ÜRÜN AÇIKLAMASI | D5: ÖLÇÜ | E5: MİKTAR | F5: BİRİM | G5: BİRİM FİYATI | H5: TOPLAM FİYAT
B6: MZ 100-010 | C6: KONDENS KANALLI RAY PROFİLİ | D6: 50*59,1 | E6: =(G4*2)/1000 -> 13 | F6: Mt. | G6: ='MARKİZZ SİPARİŞ'!I6 -> 109.0530625 | H6: =E6*G6 -> 1417.689813 | K6: =E6*20 -> 260
B7: MZ 100-020 | C7: AYAR PROFİLİ VARSA, KUTUYA 1 YAZIN | D7: 55*60 | E7: =G4/1000 -> 6.5 | F7: Mt. | G7: ='MARKİZZ SİPARİŞ'!I7 -> 64.98578125 | H7: 0 | K7: =E7*20 -> 130
B8: MZ 100-060 | C8: TWIN MAX KANAT PROFİLİ | D8: 30*33,8 | E8: =(G4*2)/1000 -> 13 | F8: Mt. | G8: ='MARKİZZ SİPARİŞ'!I12 -> 32.4544375 | H8: =E8*G8 -> 421.9076875 | K8: 260
B9: MZ 100-080 | C9: TWIN MAX İSPANYOLET PROFİLİ | D9: 30*62,5 | E9: =((H4-130)*E21/1000) -> 3.34 | F9: Mt. | G9: ='MARKİZZ SİPARİŞ'!I15 -> 47.9895 | H9: 160.28493 | K9: 66.8
B10: MZ 100-090 | C10: TWIN MAX ARADİKME PROFİLİ | D10: 30*32 | E10: =((H4-130)/1000)*((E23+E21)-1) -> 15.03 | F10: Mt. | G10: ='MARKİZZ SİPARİŞ'!I16 -> 26.68646875 | H10: 401.0976253 | K10: 300.6
B11: MZ 100-100 | C11: TWIN MAX ARADİKME KARŞILIK PROFİLİ | D11: 30*30,3 | E11: =(H4-130)/1000*((E23+E21)-1-E14) -> 15.03 | F11: Mt. | G11: ='MARKİZZ SİPARİŞ'!I18 -> 28.4553125 | H11: 427.6833469 | K11: 300.6
B12: MZ 100-110 | C12: TWIN MAX AÇILI BİRLEŞİM PROFİLİ | D12: 30*35,2 | E12: =((H4-130)/1000)*E14 -> 0 | F12: Mt. | G12: ='MARKİZZ SİPARİŞ'!I20 -> 29.91653125 | H12: 0 | K12: 0
B13: MZ 100-030 | C13: YAN DİKME PROFİLİ | D13: 36*52,6 | E13: =((H4*2)/1000)+(H7*0.06) -> 3.6 | F13: Mt. | G13: ='MARKİZZ SİPARİŞ'!I8 -> 39.60671875 | H13: =E13*G13 -> 142.5841875 | K13: 72
B14: MZ 300-004 | C14: AÇILI BİRLEŞİM LAMEL TAKIMI | D14: 3*30*90 | E14: 0 | F14: Adet | G14: ='MARKİZZ SİPARİŞ'!I55 -> 9.256 | H14: =E14*G14 -> 0 | K14: 0
B15: MZ 200-400/410 | C15: AÇILI BİRLEŞİM İÇ+DIŞ CONTASI | D15: 5,4*11 7*12 | E15: =E12 -> 0 | F15: Mt. | G15: ='MARKİZZ SİPARİŞ'!I61+'MARKİZZ SİPARİŞ'!I62 -> 9.3015 | H15: =E15*G15 -> 0 | K15: 0
B16: MZ 200-440 | C16: TWIN MAX ARA DİKME KARŞILIK CONTASI | D16: 8*15 | E16: =E11 -> 15.03 | F16: Mt. | G16: ='MARKİZZ SİPARİŞ'!I60 -> 6.942 | H16: =E16*G16 -> 104.33826 | K16: 300.6
B17: MZ 200-420 | C17: YAN DİKME CONTASI | D17: 10*14 | E17: =((H4-129)*2/1000) -> 3.342 | F17: Mt. | G17: ='MARKİZZ SİPARİŞ'!I59 -> 5.85 | H17: =E17*G17 -> 19.5507 | K17: 66.84
B18: MZ 200-320 | C18: KIL FIRÇA | D18: 48*1000 | E18: =G4*3/1000 -> 19.5 | F18: Mt. | G18: ='MARKİZZ SİPARİŞ'!I58 -> 1.47875 | H18: 28.835625 | K18: 390
B19: MZ 400-503 | C19: KANAT DIŞ-İZOLASYON CONTASI | D19: 6*7 | E19: =G4*1/1000 -> 6.5 | F19: Mt. | G19: ='MARKİZZ SİPARİŞ'!I63 -> 2.847 | H19: 18.5055 | K19: 130
B20: SİSTEM BRÜT MALİYETİ | H20: =H19+H18+H17+H16+H15+H13+H14+H12+H11+H10+H9+H8+H6+((E7*G7)*H7) -> 3142.477675 | K20: 0
B21: MZ 500-050 | C21: TWIN MAX MENTEŞELİ KANAT TAKIMI | E21: 2 | F21: Tk. | G21: ='MARKİZZ SİPARİŞ'!I41 -> 100.88 | H21: =E21*G21 -> 201.76 | K21: 40
B22: MZ 500-080 | C22: TWIN MAX İSPANYOLET KANAT TAKIMI | E22: 2 | F22: Tk. | G22: ='MARKİZZ SİPARİŞ'!I43 -> 218.79 | H22: =E22*G22 -> 437.58 | K22: 40
B23: MZ 500-060 | C23: TWIN MAX HAREKETLİ KANAT TAKIMI | E23: 8 | F23: Tk. | G23: ='MARKİZZ SİPARİŞ'!I42 -> 115.18 | H23: 921.44 | K23: 160
B24: MZ 500-070 | C24: TWIN MAX SABİT KANAT TAKIMI | E24: 0 | F24: Tk. | G24: ='MARKİZZ SİPARİŞ'!I44 -> 35.88 | H24: =E24*G24 -> 0
B25: KANAT TAKIMLARI BRÜT MALİYETİ | H25: =SUM(H21:H24) -> 1560.78
B26: MİKTARSAL İSKONTO | G26: 0 | H26: =(H20+H25)*G26 -> 0
B27: 4+16+4 MM. CAM: ÇİFT TARAF TEMPER + RODAJ CAM m² FİYATI | E27: =(H4-158)*G4/1000000 -> 10.673 | F27: m² | G27: 400 | H27: 4269.2
B28: m² Bazında CAMLI Sistem maliyeti | F28: KDV HARİÇ | G28: =(H20+H25+H27)-H26 -> 8972.457675
G29: =G28/((G4*H4)/1000000) -> 766.8767243
B30: m² Bazında CAMSIZ Sistem maliyeti | G30: =(H20+H25)-H26 -> 4703.257675
G31: =G30/((G4*H4)/1000000) -> 401.9878354
B32: TEMPER CAM FİYATLARINDA, PİYASA FİYATLARI ESAS ALINMIŞTIR.
B33: NET İMALAT MALİYETİ HESAPLAMASIDIR. İMALATTA KULLANILACAK YARDIMCI MALZEMELER DİKKATE ALINMAMIŞTIR. TÜKETİCİ FİYATLARI VERİLİRKEN BU HUSUSLARIN DİKKATE ALINMASI GEREKİR.

Sheet A-RA MAX SATIŞ
B2: " Cam Balkonun Lokomotifi"
G3: GENİŞLİK L | H3: YÜKSEKLİK H
G4: 6500 | H4: 1800
B5: STOK KOD | C5: ÜRÜN AÇIKLAMASI | D5: ÖLÇÜ | E5: MİKTAR | F5: BİRİM | G5: BİRİM FİYATI | H5: TOPLAM FİYAT
B6: MZ 100-010 | C6: KONDENS KANALLI RAY PROFİLİ | D6: 50*59,1 | E6: =(G4*2)/1000 -> 13 | F6: Mt. | G6: ='MARKİZZ SİPARİŞ'!I6 -> 109.0530625 | H6: =E6*G6 -> 1417.689813
B7: MZ 100-020 | C7: AYAR PROFİLİ VARSA, KUTUYA 1 YAZIN | D7: 55*60 | E7: =((G4-2.4)/1000) -> 6.4976 | F7: Mt. | G7: ='MARKİZZ SİPARİŞ'!I7 -> 64.98578125 | H7: 0
B8: MZ 100-060 | C8: TWIN MAX KANAT PROFİLİ | D8: 30*33,8 | E8: =(G4*2)/1000 -> 13 | F8: Mt. | G8: ='MARKİZZ SİPARİŞ'!I12 -> 32.4544375 | H8: =E8*G8 -> 421.9076875
B9: MZ 100-080 | C9: TWIN MAX İSPANYOLET PROFİLİ | D9: 30*62,5 | E9: =((H4-130)*E21/1000) -> 3.34 | F9: Mt. | G9: ='MARKİZZ SİPARİŞ'!I15 -> 47.9895 | H9: 160.28493
B10: MZ 100-090 | C10: TWIN MAX ARADİKME PROFİLİ | D10: 30*32 | E10: =((H4-130)/1000)*((E23+E21)-1) -> 15.03 | F10: Mt. | G10: ='MARKİZZ SİPARİŞ'!I16 -> 26.68646875 | H10: 401.0976253
B11: MZ 100-100 | C11: TWIN MAX ARADİKME KARŞILIK PROFİLİ | D11: 30*30,3 | E11: =(H4-130)/1000*((E23+E21)-1-E14) -> 15.03 | F11: Mt. | G11: ='MARKİZZ SİPARİŞ'!I18 -> 28.4553125 | H11: 427.6833469
B12: MZ 100-110 | C12: TWIN MAX AÇILI BİRLEŞİM PROFİLİ | D12: 30*35,2 | E12: =((H4-130)/1000)*E14 -> 0 | F12: Mt. | G12: ='MARKİZZ SİPARİŞ'!I20 -> 29.91653125 | H12: 0
B13: MZ 100-030 | C13: YAN DİKME PROFİLİ | D13: 36*52,6 | E13: =((H4*2)/1000)+(H7*0.06) -> 3.6 | F13: Mt. | G13: ='MARKİZZ SİPARİŞ'!I8 -> 39.60671875 | H13: =E13*G13 -> 142.5841875
B14: MZ 300-004 | C14: AÇILI BİRLEŞİM LAMEL TAKIMI | D14: 3*30*90 | E14: 0 | F14: Adet | G14: ='MARKİZZ SİPARİŞ'!I55 -> 9.256 | H14: =E14*G14 -> 0
B15: MZ 200-400/410 | C15: AÇILI BİRLEŞİM İÇ+DIŞ CONTASI | D15: 5,4*11 7*12 | E15: =E12 -> 0 | F15: Mt. | G15: ='MARKİZZ SİPARİŞ'!I61+'MARKİZZ SİPARİŞ'!I62 -> 9.3015 | H15: =G15*E15 -> 0
B16: MZ 200-440 | C16: TWIN MAX ARADİKME KARŞILIK CONTASI | D16: 8*15 | E16: =E11 -> 15.03 | F16: Mt. | G16: ='MARKİZZ SİPARİŞ'!I60 -> 6.942 | H16: =E16*G16 -> 104.33826
B17: MZ 200-420 | C17: YAN DİKME CONTASI | D17: 10*14 | E17: =((H4-129)*2/1000) -> 3.342 | F17: Mt. | G17: ='MARKİZZ SİPARİŞ'!I59 -> 5.85 | H17: =E17*G17 -> 19.5507
B18: MZ 200-320 | C18: KIL FIRÇA | D18: 48*1000 | E18: =G4*3/1000 -> 19.5 | F18: Mt. | G18: ='MARKİZZ SİPARİŞ'!I58 -> 1.47875 | H18: 28.835625
B19: MZ 400-503 | C19: TWIN MAX KANAT DIŞ İZOLASYON CONTASI | D19: 6*7 | E19: =G4*1/1000 -> 6.5 | F19: Mt. | G19: ='MARKİZZ SİPARİŞ'!I63 -> 2.847 | H19: 18.5055
B20: SİSTEM BRÜT MALİYETİ | H20: =H19+H18+H17+H16+H15+H14+H13+H12+H11+H10+H9+H8+H6+((E7*G7)*H7) -> 3142.477675
B21: MZ 500-050 | C21: TWIN MAX MENTEŞELİ KANAT TAKIMI | E21: 2 | F21: Tk. | G21: ='MARKİZZ SİPARİŞ'!I41 -> 100.88 | H21: =E21*G21 -> 201.76
B22: MZ 500-080 | C22: TWIN MAX İSPANYOLET KANAT TAKIMI | E22: 2 | F22: Tk. | G22: ='MARKİZZ SİPARİŞ'!I43 -> 218.79 | H22: =E22*G22 -> 437.58
B23: MZ 500-060 | C23: TWIN MAX HAREKETLİ KANAT TAKIMI | E23: 8 | F23: Tk. | G23: ='MARKİZZ SİPARİŞ'!I42 -> 115.18 | H23: 921.44
B24: MZ 500-070 | C24: TWIN MAX SABİT KANAT TAKIMI | E24: 0 | F24: Tk. | G24: ='MARKİZZ SİPARİŞ'!I44 -> 35.88 | H24: =E24*G24 -> 0
B25: KANAT TAKIMLARI BRÜT MALİYETİ | H25: =SUM(H21:H24) -> 1560.78
B26: MİKTARSAL İSKONTO | G26: 0 | H26: =(H20+H25)*G26 -> 0
B27: 4+16+4 MM. CAM: ÇİFT TARAF TEMPER + RODAJ CAM m² FİYATI | E27: =(H4-158)*G4/1000000 -> 10.673 | F27: m² | G27: 350 | H27: 3735.55
B28: MÜŞTERİ SATIŞ VE MONTAJ ORANI | G28: 0.7 | H28: =(H27+H25+H20)*G28 -> 5907.165372
B29: m² Bazında CAMLI Sistem Satış Fiyatı | F29: KDV HARİÇ | G29: =((H20+H25)-(H26)+(H27+H28)) -> 14345.97305
G30: =G29/((G4*H4)/1000000) -> 1226.151542
B31: TEMPER CAM FİYATLARINDA, PİYASA FİYATLARI ESAS ALINMIŞTIR.
B32: NET İMALAT MALİYETİ HESAPLAMASIDIR. İMALATTA KULLANILACAK YARDIMCI MALZEMELER DİKKATE ALINMAMIŞTIR. TÜKETİCİ FİYATLARI VERİLİRKEN BU HUSUSLARIN DİKKATE ALINMASI GEREKİR.

Sheet A-RA SLIDE MAX
B2: " Cam Balkonun Lokomotifi"
G3: GENİŞLİK L | H3: YÜKSEKLİK H
G4: 6500 | H4: 1800
B5: STOK KOD | C5: ÜRÜN AÇIKLAMASI | D5: ÖLÇÜ | E5: MİKTAR | F5: BİRİM | G5: BİRİM FİYATI | H5: TOPLAM FİYAT
B6: MZ 100-200 | C6: SLIDE MAX RAY PROFİLİ | D6: 43,4*96,9 | E6: =((G4-24)/1000)*2 -> 12.952 | F6: Mt. | G6: ='MARKİZZ SİPARİŞ'!I21 -> 107.361125 | H6: =E6*G6 -> 1390.541291
B7: MZ 100-210 | C7: SLIDE MAX EK RAY PROFİLİ | D7: 37*44 | E7: =E6*H17 -> 0 | F7: Mt. | G7: ='MARKİZZ SİPARİŞ'!I22 -> 43.29821875 | H7: =E7*G7 -> 0
B8: MZ 100-220 | C8: SLIDE MAX YAN DİKME PROFİLİ | D8: 12*97 | E8: =(H4*2)/1000 -> 3.6 | F8: Mt. | G8: ='MARKİZZ SİPARİŞ'!I23 -> 63.37075 | H8: =E8*G8 -> 228.1347
B9: MZ 100-230 | C9: SLIDE MAX EK YAN DİKME PROFİLİ | D9: 12*37 | E9: =E8*H17 -> 0 | F9: Mt. | G9: ='MARKİZZ SİPARİŞ'!I24 -> 27.2248125 | H9: 0
B10: MZ 100-240 | C10: SLIDE MAX KANAT BAZA PROFİLİ | D10: 24*95 | E10: =(((G4-24)-(164+((E21-1)*4)))/1000)*2 -> 12.584 | F10: Mt. | G10: ='MARKİZZ SİPARİŞ'!I25 -> 78.36746875 | H10: 986.1762267
B11: MZ 100-250 | C11: SLIDE MAX ÇEKME PROFİLİ | D11: 34*36 | E11: =((H4-54)/1000*(E21-1)*2)-(H18*(H4-54)/1000)*2 -> 13.968 | F11: Mt. | G11: ='MARKİZZ SİPARİŞ'!I26 -> 46.759 | H11: 653.129712
B12: MZ 100-260 | C12: SLIDE MAX KİLİT PROFİLİ | D12: 27*65 | E12: =((H4-54)/1000)*2+H18*((H4-54)/1000)*2 -> 6.984 | F12: Mt. | G12: ='MARKİZZ SİPARİŞ'!I27 -> 55.60321875 | H12: 388.3328797
B13: MZ 100-270 | C13: SLIDE MAX KİLİT KARŞILIĞI PROFİLİ | D13: 24*33 | E13: =((H4-54)/1000)*2+H18*((H4-54)/1000) -> 5.238 | F13: Mt. | G13: ='MARKİZZ SİPARİŞ'!I28 -> 36.68428125 | H13: =E13*G13 -> 192.1522652
B14: MZ 100-280 | C14: SLIDE MAX 90° KİLİT KARŞILIĞI PROFİLİ | D14: 40,8*44,3 | E14: =(H4-100)/1000*H19 -> 0 | F14: Mt. | G14: ='MARKİZZ SİPARİŞ'!I29 -> 52.9115 | H14: =E14*G14 -> 0
B15: MZ 200-300 | C15: KIL FIRÇA | D15: 48*450 | E15: =((H4*2)/1000)+(H7*0.06) -> 3.6 | F15: Mt. | G15: ='MARKİZZ SİPARİŞ'!I56 -> 0.75075 | H15: =E15*G15 -> 2.7027
B16: MZ 500-500 | C16: SLIDE MAX KİLİT TAKIMI | E16: =2+H18+H19 -> 3 | F16: Ad. | G16: ='MARKİZZ SİPARİŞ'!I46 -> 95.16 | H16: =E16*G16 -> 285.48
B17: EK RAY PROFİLİ VARSA SAYISINI YAZIN | H17: 0
B18: ORTADAN AÇILIM VARSA SAYISINI YAZIN | H18: 1
B19: SİSTEMDE 90° BİRLEŞİM VARSA SAYISINI GİRİN | H19: 0
B20: SİSTEM BRÜT MALİYETİ | H20: =SUM(H6:H16) -> 4126.649775
B21: MZ 500-100 | C21: A-RA SLIDE MAX KANAT TEKER TAKIMI | E21: 6 | F21: Tk. | G21: ='MARKİZZ SİPARİŞ'!I45 -> 182.13 | H21: =E21*G21 -> 1092.78
B22: KANAT TAKIMLARI BRÜT MALİYETİ | H22: =SUM(H21:H21) -> 1092.78
B23: MİKTARSAL İSKONTO | G23: 0 | H23: =(H20+H22)*G23 -> 0
B24: 4+12+4 MM. CAM: ÇİFT TARAF TEMPER + RODAJ CAM m² FİYATI | E24: =(E10/2)*((H4-214)/1000) -> 9.979112 | F24: m² | G24: 400 | H24: 3991.6448
B25: m² Bazında CAMLI Sistem maliyeti | F25: KDV HARİÇ | G25: =(H20+H22+H24)-H23 -> 9211.074575
G26: =G25/((G4*H4)/1000000) -> 787.2713312
B27: m² Bazında CAMSIZ Sistem maliyeti | G27: =(H20+H22)-H23 -> 5219.429775
G28: =G27/((G4*H4)/1000000) -> 446.1051089
B29: TEMPER CAM FİYATLARINDA, PİYASA FİYATLARI ESAS ALINMIŞTIR.
B30: NET İMALAT MALİYETİ HESAPLAMASIDIR. İMALATTA KULLANILACAK YARDIMCI MALZEMELER DİKKATE ALINMAMIŞTIR. TÜKETİCİ FİYATLARI VERİLİRKEN BU HUSUSLARIN DİKKATE ALINMASI GEREKİR.

Sheet A-RA SILDE MAX SATIŞ
B2: " Cam Balkonun Lokomotifi"
G3: GENİŞLİK L | H3: YÜKSEKLİK H
G4: 8500 | H4: 1800
B5: STOK KOD | C5: ÜRÜN AÇIKLAMASI | D5: ÖLÇÜ | E5: MİKTAR | F5: BİRİM | G5: BİRİM FİYATI | H5: TOPLAM FİYAT
B6: MZ 100-200 | C6: SLIDE MAX RAY PROFİLİ | D6: 43,4*96,9 | E6: =((G4-24)/1000)*2 -> 16.952 | F6: Mt. | G6: ='MARKİZZ SİPARİŞ'!I21 -> 107.361125 | H6: =E6*G6 -> 1819.985791
B7: MZ 100-210 | C7: SLIDE MAX EK RAY PROFİLİ | D7: 37*44 | E7: =E6*H17 -> 0 | F7: Mt. | G7: ='MARKİZZ SİPARİŞ'!I22 -> 43.29821875 | H7: =E7*G7 -> 0
B8: MZ 100-220 | C8: SLIDE MAX YAN DİKME PROFİLİ | D8: 12*97 | E8: =(H4*2)/1000 -> 3.6 | F8: Mt. | G8: ='MARKİZZ SİPARİŞ'!I23 -> 63.37075 | H8: =E8*G8 -> 228.1347
B9: MZ 100-230 | C9: SLIDE MAX EK YAN DİKME PROFİLİ | D9: 12*37 | E9: =E8*H17 -> 0 | F9: Mt. | G9: ='MARKİZZ SİPARİŞ'!I24 -> 27.2248125 | H9: 0
B10: MZ 100-240 | C10: SLIDE MAX KANAT BAZA PROFİLİ | D10: 24*95 | E10: =(((G4-24)-(164+((E21-1)*4)))/1000)*2 -> 16.584 | F10: Mt. | G10: ='MARKİZZ SİPARİŞ'!I25 -> 78.36746875 | H10: 1299.646102
B11: MZ 100-250 | C11: SLIDE MAX ÇEKME PROFİLİ | D11: 34*36 | E11: =((H4-54)/1000*(E21-1)*2)-(H19*(H4-54)/1000)*2 -> 13.968 | F11: Mt. | G11: ='MARKİZZ SİPARİŞ'!I26 -> 46.759 | H11: 653.129712
B12: MZ 100-260 | C12: SLIDE MAX KİLİT PROFİLİ | D12: 27*65 | E12: =((H4-54)/1000)*2+H19*((H4-54)/1000)*2 -> 6.984 | F12: Mt. | G12: ='MARKİZZ SİPARİŞ'!I27 -> 55.60321875 | H12: 388.3328797
B13: MZ 100-270 | C13: SLIDE MAX KİLİT KARŞILIĞI | D13: 24*33 | E13: =((H4-54)/1000)*2+H19*((H4-54)/1000) -> 5.238 | F13: Mt. | G13: ='MARKİZZ SİPARİŞ'!I28 -> 36.68428125 | H13: =E13*G13 -> 192.1522652
B14: MZ 100-280 | C14: SLIDE MAX 90° KİLİT KARŞILIĞI PROFİLİ | D14: 40,8*44,3 | E14: =(H4-100)/1000*H18 -> 0 | F14: Mt. | G14: ='MARKİZZ SİPARİŞ'!I29 -> 52.9115 | H14: =E14*G14 -> 0
B15: MZ 00-300 | C15: KIL FIRÇA | D15: 48*450 | E15: =((H4*2)/1000)+(H7*0.06) -> 3.6 | F15: Mt. | G15: ='MARKİZZ SİPARİŞ'!I56 -> 0.75075 | H15: =E15*G15 -> 2.7027
B16: MZ 500-500 | C16: SLIDE MAX KİLİT TAKIMI | E16: =2+H19 -> 3 | F16: Ad. | G16: ='MARKİZZ SİPARİŞ'!I46 -> 95.16 | H16: =E16*G16 -> 285.48
B17: EK RAY PROFİLİ VARSA SAYISINI YAZIN | H17: 0
B18: SİSTEMDE 90° BİRLEŞİM VARSA SAYISINI YAZIN | H18: 0
B19: ORTADAN AÇILIM VARSA SAYISINI YAZIN | H19: 1
B20: SİSTEM BÜRÜT MALİYETİ | H20: =SUM(H6:H16) -> 4869.56415
B21: MZ 500-100 | C21: A-RA SLIDE MAX KANAT TEKER TAKIMI | E21: 6 | F21: Tk. | G21: ='MARKİZZ SİPARİŞ'!I45 -> 182.13 | H21: =E21*G21 -> 1092.78
B22: KANAT TAKIMLARI BRÜT MALİYETİ | H22: =SUM(H21:H21) -> 1092.78
B23: MİKTARSAL İSKONTO | G23: 0 | H23: =(H20+H22)*G23 -> 0
B24: 4+12+4 mm CAM TEMPER + RODAJ CAM m² FİYATI | E24: =(E10/2)*((H4-214)/1000) -> 13.151112 | F24: m² | G24: 350 | H24: =G24*E24 -> 4602.8892
B25: MÜŞTERİ SATIŞ VE MONTAJ ORANI | G25: 0.7 | H25: =(H24+H22+H20)*G25 -> 7395.663345
B26: m² Bazında CAMLI Sistem maliyeti | F26: KDV HARİÇ | G26: =((H20+H22)-(H23)+(H24+H25)) -> 17960.89669
G27: =G26/((G4*H4)/1000000) -> 1173.914817
B28: TEMPER CAM FİYATLARINDA, PİYASA FİYATLARI ESAS ALINMIŞTIR.
B29: NET İMALAT MALİYETİ HESAPLAMASIDIR. İMALATTA KULLANILACAK YARDIMCI MALZEMELER DİKKATE ALINMAMIŞTIR. TÜKETİCİ FİYATLARI VERİLİRKEN BU HUSUSLARIN DİKKATE ALINMASI GEREKİR.

Sheet HAREKETLİ KANAT TK (hidden)
E2: FİRMA : ALOĞLU TENTE (YURDANUR ALOĞLU) PAŞA ALANI MAH. 453.SOK NO:14 KARESİ / BALIKESİR Kurtdereli VD. 055 007 6704 TEL : +90 266 249 2263
E3: SİPARİŞ TARİHİ | G3: TESLİM TARİHİ
E4: =TODAY() -> 2021-12-26 | G4: =TODAY()+1 -> 2021-12-27
A5: MARKİZZ ÜRÜN KODU | B5: MALZEME CİNSİ | C5: ÜRÜN AÇIKLAMASI | D5: ÖLÇÜ | E5: MİKTAR | F5: BİRİM FİYATI | G5: TUTAR
A6: MZ 200-001 | B6: POLYEMİD | C6: BASKILI RULMAN PLASTİĞİ | D6: Ø38 | E6: 8 | F6: ='STOK YENİ'!Q87 -> 0.35475 | G6: =E6*F6 -> 2.838
A7: MZ 200-009 | B7: POLYEMİD | C7: 8-10 MM CAM PİMİ | D7: 10*20 | E7: 4 | F7: ='STOK YENİ'!Q95 -> 0.204 | G7: 0.816
A8: MZ 200-014 | B8: POLYEMİD | C8: DÜZ KAPAK SOL | D8: 30*45 | E8: 2 | F8: ='STOK YENİ'!Q100 -> 0.224 | G8: 0.448
A9: MZ 200-015 | B9: POLYEMİD | C9: DÜZ KAPAK SAĞ | D9: 30*45 | E9: 2 | F9: ='STOK YENİ'!Q101 -> 0.224 | G9: 0.448
A10: MZ 200-030 | B10: NAYLONALTI | C10: CAM TAKOZU | D10: 1 MM | E10: 1 | F10: 0.036 | G10: 0.036
A11: MZ 200-031 | B11: NAYLONALTI | C11: CAM TAKOZU | D11: 2 MM | E11: 1 | F11: 0.04 | G11: 0.04
A12: MZ 200-032 | B12: NAYLONALTI | C12: CAM TAKOZU | D12: 3 MM | E12: 1 | F12: 0.042 | G12: 0.042
A13: MZ 200-033 | B13: NAYLONALTI | C13: CAM TAKOZU | D13: 6 MM | E13: 1 | F13: 0.046 | G13: 0.046
A14: MZ 200-035 | B14: KARTON | C14: KARTON KOLİ | D14: 480*400*180 | E14: 1 | F14: 0.325 | G14: 0.325
A15: MZ 200-036 | B15: KARTON | C15: KUTU OFSET BASKILI | D15: 79*85*200 | E15: 1 | F15: 1.1 | G15: 1.1
A16: MZ 300-002 | B16: ZAMAK 5 | C16: KAYAR KANAT ALT PARK LAMELİ | D16: 5*30*40 | E16: 1 | F16: ='STOK YENİ'!Q142 -> 0.6166666667 | G16: 0.6166666667
A17: MZ 300-003 | B17: ZAMAK 5 | C17: KAYAR KANAT ÜST PARK LAMELİ | D17: 5*30*40 | E17: 1 | F17: ='STOK YENİ'!Q143 -> 0.6166666667 | G17: 0.6166666667
A18: MZ 300-005 | B18: ZAMAK 5 | C18: KAYAR KANAT MİLİ ARKA | D18: 25*49*52,5 | E18: 2 | F18: 1.55 | G18: 3.1
A19: MZ 300-006 | B19: ZAMAK 5 | C19: KAYAR KANAT MİLİ ÖN | D19: 25*49*52,5 | E19: 2 | F19: 1.55 | G19: 3.1
A20: MZ 300-007 | B20: ZAMAK 5 | C20: KAYAR KANAT MİL KAFASI | D20: 17*18 | E20: 2 | F20: ='STOK YENİ'!Q147 -> 0.7 | G20: 1.4
A21: MZ 300-008 | B21: ZAMAK 5 | C21: KAYAR KANAT MİL YÜZÜĞÜ | D21: 9*14 | E21: 4 | F21: ='STOK YENİ'!Q148 -> 0.35 | G21: 1.4
A22: MZ 400-002 | B22: KARBON | C22: S 6000 ZZ | D22: 10*26*8 | E22: 8 | F22: 1 | G22: 8
A23: MZ 400-008 | B23: İNOX | C23: SETİSKUR | D23: M6*10 | E23: 4 | F23: 0.06 | G23: 0.24
A24: MZ 400-009 | B24: İNOX | C24: SETİSKUR | D24: M8*10 | E24: 1 | F24: 0.16 | G24: 0.16
A25: MZ 400-010 | B25: İNOX | C25: SETİSKUR | D25: M8*12 | E25: 1 | F25: 0.12 | G25: 0.12
A26: MZ 400-012 | B26: İNOX | C26: DÜZ KAPAK VİDASI | D26: 3,9*19 | E26: 4 | F26: 0.1 | G26: 0.4
A27: MZ 400-017 | C27: BULDEX VİDA | D27: 6*60 | E27: 1 | F27: 0.145 | G27: 0.145
A28: MZ 400-018 | C28: BULDEX VİDA | D28: 6*120 | E28: 1 | F28: 0.27 | G28: 0.27
A29: MZ 400-023 | B29: NAYLON | C29: KİLİTLİ NAYLON POŞET | D29: 11*14*7 | E29: 1 | F29: 0 | G29: 0
A30: MZ 400-024 | B30: NAYLON | C30: KİLİTLİ NAYLON POŞET | D30: 6*7*7 | E30: 1 | F30: 0 | G30: 0
C31: SIVAMA İŞÇİLİĞİ | E31: 4 | F31: 0.15 | G31: 0.6
C32: PAKETLEME İŞÇİLİĞİ | E32: 4 | F32: 0.15 | G32: 0.6
B33: SLİKON | C33: CONTA | D33: Ø10 | E33: 1 | F33: 0.02 | G33: 0.02
C34: BARKOD
E36: TOPLAM | G36: =SUM(G6:G35) -> 26.92733333
E37: KDV %18 | G37: =(G36/100)*18 -> 4.84692 | I37: =J37/H45 -> 1.140384012 | J37: 52.47
E38: GENEL TOPLAM | G38: =SUM(G36:G37) -> 31.77425333
G40: NAKİT | H40: NAKİT | I40: 45 GÜN | J40: 90 GÜN
E41: ARGE | F41: 0.15 | G41: =(G36*F41)+G36 -> 30.96643333
E42: İŞÇİLİK | F42: 0.15 | G42: =(G41*F42)+G41 -> 35.61139833
E43: REKLAM | F43: 0.15 | G43: =(G42*F43)+G42 -> 40.95310808
E44: MARKA | F44: 0.05 | G44: =(G43*F44)+G43 -> 43.00076349
E45: İSKONTO | F45: 0.07 | G45: =(G44*F45)+G44 -> 46.01081693 | H45: =G45 -> 46.01081693 | I45: =H45*1.0527 -> 48.43558698 | J45: =I45*1.0527 -> 50.98814242

Sheet MENTEŞELİ KANAT TK (hidden)
E2: FİRMA : ALOĞLU TENTE (YURDANUR ALOĞLU) PAŞA ALANI MAH. 453.SOK NO:14 KARESİ / BALIKESİR Kurtdereli VD. 055 007 6704 TEL : +90 266 249 2263
E3: SİPARİŞ TARİHİ | G3: TESLİM TARİHİ
E4: =TODAY() -> 2021-12-26 | G4: =TODAY()+1 -> 2021-12-27
A5: MARKİZZ ÜRÜN KODU | B5: MALZEME CİNSİ | C5: ÜRÜN AÇIKLAMASI | D5: ÖLÇÜ | E5: MİKTAR | F5: BİRİM FİYATI | G5: TUTAR
A6: MZ 200-002 | B6: POLYEMİD | C6: MENTEŞE SABİTLEME LAMEL TAKOZU | D6: 15*40*66 | E6: 2 | F6: ='STOK YENİ'!Q88 -> 0.7095 | G6: =E6*F6 -> 1.419
A7: MZ 200-004 | B7: POLYEMİD | C7: ALT ÇIKIŞ AĞZI | D7: 20,6*47,5*56 | E7: 1 | F7: ='STOK YENİ'!Q90 -> 0.93975 | G7: 0.93975
A8: MZ 200-005 | B8: POLYEMİD | C8: ALT ÇIKIŞ AĞZI KAPAĞI | D8: 44,8*65*67,6 | E8: 1 | F8: ='STOK YENİ'!Q91 -> 1.2045 | G8: 1.2045
A9: MZ 200-006 | B9: POLYEMİD | C9: ÜST ÇIKIŞ AĞZI | D9: 24,5*48*85 | E9: 1 | F9: ='STOK YENİ'!Q92 -> 1.1295 | G9: 1.1295
A10: MZ 200-007 | B10: POLYEMİD | C10: KLAVUZ - BOYNUZ | D10: 39,9*68,1*151,8 | E10: 1 | F10: ='STOK YENİ'!Q93 -> 1.28625 | G10: 1.28625
A11: MZ 200-008 | B11: POLYEMİD | C11: KLAVUZ - BOYNUZ TABANI | D11: 19,38*38,9*40 | E11: 1 | F11: ='STOK YENİ'!Q94 -> 0.58125 | G11: 0.58125
A12: MZ 200-009 | B12: POLYEMİD | C12: 8-10 MM CAM PİMİ | D12: 10*20 | E12: 4 | F12: ='STOK YENİ'!Q95 -> 0.204 | G12: 0.816
A13: MZ 200-014 | B13: POLYEMİD | C13: DÜZ KAPAK SOL | D13: 30*45 | E13: 2 | F13: ='STOK YENİ'!Q100 -> 0.224 | G13: 0.448
A14: MZ 200-015 | B14: POLYEMİD | C14: DÜZ KAPAK SAĞ | D14: 30*45 | E14: 2 | F14: ='STOK YENİ'!Q101 -> 0.224 | G14: 0.448
A15: MZ 200-021 | B15: POLYEMİD | C15: ÇARPMA KİLİT GÖVDESİ | D15: 22,5*48*40 | E15: 2 | F15: ='STOK YENİ'!Q107 -> 1.02225 | G15: 2.0445
A16: MZ 200-022 | B16: POLYEMİD | C16: ÇARPMA KİLİT DİLİ | D16: 19*73,94 | E16: 2 | F16: ='STOK YENİ'!Q108 -> 0.948 | G16: 1.896
A17: MZ 200-023 | B17: POLYEMİD | C17: ÇARPMA KİLİT DİL EMNİYETİ | D17: 3*4*14,4 | E17: 2 | F17: ='STOK YENİ'!Q109 -> 0.3915 | G17: 0.783
A18: MZ 200-030 | B18: NAYLONALTI | C18: CAM TAKOZU | D18: 1 MM | E18: 0 | F18: 0.03 | G18: 0
A19: MZ 200-031 | B19: NAYLONALTI | C19: CAM TAKOZU | D19: 2 MM | E19: 1 | F19: 0.03 | G19: 0.03
A20: MZ 200-032 | B20: NAYLONALTI | C20: CAM TAKOZU | D20: 3 MM | E20: 1 | F20: 0.04 | G20: 0.04
A21: MZ 200-033 | B21: NAYLONALTI | C21: CAM TAKOZU | D21: 5 MM | E21: 1 | F21: 0.05 | G21: 0.05
A22: MZ 200-035 | B22: KARTON | C22: KARTON KOLİ | D22: 480*400*180 | E22: 1 | F22: 0.75 | G22: 0.75
A23: MZ 200-036 | B23: KARTON | C23: KUTU OFSET BASKILI | D23: 79*85*200 | E23: 1 | F23: 1.925 | G23: 1.925
A24: MZ 300-001 | B24: ZAMAK 5 | C24: MANTEŞE SABİTLEME TAKOZ LAMELİ | D24: 5*30*82,7 | E24: 2 | F24: ='STOK YENİ'!Q141 -> 2.108 | G24: 4.216
A25: MZ 300-009 | B25: ZAMAK 5 | C25: MENTEŞELİ KANAT MİLİ | D25: 23*51,5*27,3 | E25: 2 | F25: ='STOK YENİ'!Q149 -> 0.85 | G25: 1.7
A26: MZ 400-002 | B26: İNOX | C26: SOMUN | D26: M6 | E26: 3 | F26: 1 | G26: 3
A27: MZ 400-003 | B27: POLYEMİD | C27: MENTEŞE MİL YATAĞI | D27: 16*22*13,3 | E27: 2 | F27: ='STOK YENİ'!Q89 -> 0.3915 | G27: 0.783
A28: MZ 400-004 | B28: İNOX | C28: HAVŞABAŞ İMBUS | D28: M6*25 | E28: 2 | F28: 0.19 | G28: 0.38
A29: MZ 400-008 | B29: İNOX | C29: SETİSKUR | D29: M6*10 | E29: 3 | F29: 0.06 | G29: 0.18
A30: MZ 400-011 | B30: İNOX | C30: YSPB MATKAP UÇLU VİDA (YAN DİKME) | D30: 3,9*13 | E30: 4 | F30: =[2]HIRDAVAT!$L$11 -> 0.0352 | G30: 0.1408
A31: MZ 400-012 | B31: İNOX | C31: DÜZ KAPAK VİDASI | D31: 3,9*19 | E31: 4 | F31: 0.1 | G31: 0.4
A32: MZ 400-014 | B32: DAKRO | C32: YHB MATKAPUÇLU VİDA | D32: 3,9*13 | E32: 3 | F32: 0.022 | G32: 0.066
A33: MZ 400-015 | B33: DAKRO | C33: YHB MATKAPUÇLU VİDA | D33: 3,9*19 | E33: 1 | F33: 0.026 | G33: 0.026
A34: MZ 400-016 | B34: DAKRO | C34: YHB MATKAPUÇLU VİDA | D34: 3,9*25 | E34: 4 | F34: 0.032 | G34: 0.128
A35: MZ 400-017 | C35: BULDEX VİDA | D35: 6*60 | E35: 3 | F35: 0.145 | G35: 0.435
A36: MZ 400-018 | C36: BULDEX VİDA | D36: 6*120 | E36: 1 | F36: 0.27 | G36: 0.27
A37: MZ 400-023 | B37: NAYLON | C37: KİLİTLİ NAYLON POŞET | D37: 11*14*7 | E37: 1 | F37: 0 | G37: 0
A38: MZ 400-024 | B38: NAYLON | C38: KİLİTLİ NAYLON POŞET | D38: 6*7*7 | E38: 1 | F38: 0 | G38: 0
B39: İNOX | C39: BOYNUZ BAĞLANTI PİMİ | D39: 4*40 | E39: 1 | F39: 0.75 | G39: 0.75
C40: İŞÇİLİK | E40: 2 | F40: 0.15 | G40: 0.3
B41: İNOX | C41: ÇARPMA KLİT YAYI | E41: 2 | F41: 0.5 | G41: 1
B42: İNOX | C42: ÇARPMA KİLİT YAY PİMİ | D42: 2,8*8 | E42: 2 | F42: 0.5 | G42: 1
C43: STİCKER | D43: Ø39 | E43: 1 | F43: 0.7 | G43: 0.7
C44: STİCKER | D44: 23*45 | E44: 2 | F44: 0.25 | G44: 0.5
C45: PAKETLEME İŞÇİLİĞİ | E45: 4 | F45: 0.15 | G45: 0.6
B46: PLASTİK | C46: BONCUK ZİNCİR | D46: BP028 | E46: 2.2 | F46: 0.55 | G46: 1.21
B47: SLİKON | C47: CONTA | D47: Ø10 | E47: 1 | F47: 0.02 | G47: 0.02
C48: BARKOD
E50: TOPLAM | G50: =SUM(G6:G49) -> 33.59555
E51: KDV %18 | G51: =(G50/100)*18 -> 6.047199 | J51: =K51/H59 -> 1.044427207 | K51: 52.47
E52: GENEL TOPLAM | G52: =SUM(G50:G51) -> 39.642749
H53: NAKİT | I53: 45 GÜN | J53: 90 GÜN
E55: AR-GE | F55: 0.1 | G55: =(G50*F55)+G50 -> 36.955105
E56: İŞÇİLİK | F56: 0.1 | G56: =(G55*F56)+G55 -> 40.6506155
E57: REKLAM | F57: 0.1 | G57: =(G56*F57)+G56 -> 44.71567705
E58: MARKA | F58: 0.05 | G58: =(G57*F58)+G57 -> 46.9514609
E59: MİKTARSAL | F59: 0.07 | G59: =(G58*F59)+G58 -> 50.23806317 | H59: =G59 -> 50.23806317 | I59: =H59*1.0527 -> 52.88560909 | J59: =I59*1.0527 -> 55.67268069

Sheet A-RA MAX HAREKETLİ KANAT (hidden)
E2: FİRMA : ALOĞLU TENTE (YURDANUR ALOĞLU) PAŞA ALANI MAH. 453.SOK NO:14 KARESİ / BALIKESİR Kurtdereli VD. 055 007 6704 TEL : +90 266 249 2263
E3: SİPARİŞ TARİHİ | G3: TESLİM TARİHİ
E4: =TODAY() -> 2021-12-26 | G4: =TODAY()+1 -> 2021-12-27
A5: MARKİZZ ÜRÜN KODU | B5: MALZEME CİNSİ | C5: ÜRÜN AÇIKLAMASI | D5: ÖLÇÜ | E5: MİKTAR | F5: BİRİM FİYATI | G5: TUTAR
A6: MZ 200-001 | B6: POLYEMİD | C6: BASKILI RULMAN PLASTİĞİ | D6: Ø38 | E6: 8 | F6: ='STOK YENİ'!Q87 -> 0.35475 | G6: =E6*F6 -> 2.838
A7: MZ 200-030 | B7: NAYLONALTI | C7: CAM TAKOZU | D7: 1 MM | E7: 1 | F7: 0.036 | G7: 0.036
A8: MZ 200-031 | B8: NAYLONALTI | C8: CAM TAKOZU | D8: 2 MM | E8: 1 | F8: 0.04 | G8: 0.04
A9: MZ 200-032 | B9: NAYLONALTI | C9: CAM TAKOZU | D9: 3 MM | E9: 1 | F9: 0.042 | G9: 0.042
A10: MZ 200-033 | B10: NAYLONALTI | C10: CAM TAKOZU | D10: 6 MM | E10: 1 | F10: 0.046 | G10: 0.046
A11: MZ 200-035 | B11: KARTON | C11: KARTON KOLİ | D11: 480*400*180 | E11: 1 | F11: 0.325 | G11: 0.325
A12: MZ 200-036 | B12: KARTON | C12: KUTU OFSET BASKILI | D12: 79*85*200 | E12: 1 | F12: 1.1 | G12: 1.1
A13: MZ 300-002 | B13: ZAMAK 5 | C13: KAYAR KANAT ALT PARK LAMELİ | D13: 5*30*40 | E13: 1 | F13: ='STOK YENİ'!Q142 -> 0.6166666667 | G13: 0.6166666667
A14: MZ 300-003 | B14: ZAMAK 5 | C14: KAYAR KANAT ÜST PARK LAMELİ | D14: 5*30*40 | E14: 1 | F14: ='STOK YENİ'!Q143 -> 0.6166666667 | G14: 0.6166666667
A15: MZ 300-005 | B15: ZAMAK 5 | C15: KAYAR KANAT MİLİ ARKA | D15: 25*49*52,5 | E15: 2 | F15: 1.55 | G15: 3.1
A16: MZ 300-006 | B16: ZAMAK 5 | C16: KAYAR KANAT MİLİ ÖN | D16: 25*49*52,5 | E16: 2 | F16: 1.55 | G16: 3.1
A17: MZ 300-007 | B17: ZAMAK 5 | C17: KAYAR KANAT MİL KAFASI | D17: 17*18 | E17: 2 | F17: ='STOK YENİ'!Q147 -> 0.7 | G17: 1.4
A18: MZ 300-008 | B18: ZAMAK 5 | C18: KAYAR KANAT MİL YÜZÜĞÜ | D18: 9*14 | E18: 4 | F18: ='STOK YENİ'!Q148 -> 0.35 | G18: 1.4
A19: MZ 300-010 | B19: ZAMAK 5 | C19: KAYAR KANAT EMNİYET KİLİT | E19: 1 | F19: 0 | G19: 0
A20: MZ 300-011 | B20: ZAMAK 5 | C20: KAYAR KANAT EMNİYET KİLİT KARŞILIĞI | E20: 1 | F20: 0 | G20: 0
A21: MZ 400-002 | B21: KARBON | C21: S 6000 ZZ | D21: 10*26*8 | E21: 8 | F21: 1 | G21: 8
A22: MZ 400-008 | B22: İNOX | C22: SETİSKUR | D22: M6*10 | E22: 4 | F22: 0.06 | G22: 0.24
A23: MZ 400-009 | B23: İNOX | C23: SETİSKUR | D23: M8*10 | E23: 1 | F23: 0.16 | G23: 0.16
A24: MZ 400-010 | B24: İNOX | C24: SETİSKUR | D24: M8*12 | E24: 1 | F24: 0.12 | G24: 0.12
A25: MZ 400-012 | B25: İNOX | C25: DÜZ KAPAK VİDASI | D25: 3,9*19 | E25: 4 | F25: 0.1 | G25: 0.4
A26: MZ 400-017 | C26: BULDEX VİDA | D26: 6*60 | E26: 1 | F26: 0.145 | G26: 0.145
A27: MZ 400-018 | C27: BULDEX VİDA | D27: 6*120 | E27: 1 | F27: 0.27 | G27: 0.27
A28: MZ 400-023 | B28: NAYLON | C28: KİLİTLİ NAYLON POŞET | D28: 11*14*7 | E28: 1 | F28: 0 | G28: 0
A29: MZ 400-024 | B29: NAYLON | C29: KİLİTLİ NAYLON POŞET | D29: 6*7*7 | E29: 1 | F29: 0 | G29: 0
C30: SIVAMA İŞÇİLİĞİ | E30: 4 | F30: 0.15 | G30: 0.6
C31: PAKETLEME İŞÇİLİĞİ | E31: 4 | F31: 0.15 | G31: 0.6
B32: SLİKON | C32: CONTA | D32: Ø10 | E32: 1 | F32: 0.02 | G32: 0.02
C33: BARKOD
E35: TOPLAM | G35: =SUM(G6:G34) -> 25.21533333
E36: KDV %18 | G36: =(G35/100)*18 -> 4.53876 | I36: =J36/H44 -> 1.217810608 | J36: 52.47
E37: GENEL TOPLAM | G37: =SUM(G35:G36) -> 29.75409333
G39: NAKİT | H39: NAKİT | I39: 45 GÜN | J39: 90 GÜN
E40: ARGE | F40: 0.15 | G40: =(G35*F40)+G35 -> 28.99763333
E41: İŞÇİLİK | F41: 0.15 | G41: =(G40*F41)+G40 -> 33.34727833
E42: REKLAM | F42: 0.15 | G42: =(G41*F42)+G41 -> 38.34937008
E43: MARKA | F43: 0.05 | G43: =(G42*F43)+G42 -> 40.26683859
E44: İSKONTO | F44: 0.07 | G44: =(G43*F44)+G43 -> 43.08551729 | H44: =G44 -> 43.08551729 | I44: =H44*1.1 -> 47.39406902 | J44: =I44*1.05 -> 49.76377247

Sheet A-RA MAX MENTEŞELİ KANAT (hidden)
E2: FİRMA : ALOĞLU TENTE (YURDANUR ALOĞLU) PAŞA ALANI MAH. 453.SOK NO:14 KARESİ / BALIKESİR Kurtdereli VD. 055 007 6704 TEL : +90 266 249 2263
E3: SİPARİŞ TARİHİ | G3: TESLİM TARİHİ
E4: =TODAY() -> 2021-12-26 | G4: =TODAY()+1 -> 2021-12-27
A5: MARKİZZ ÜRÜN KODU | B5: MALZEME CİNSİ | C5: ÜRÜN AÇIKLAMASI | D5: ÖLÇÜ | E5: MİKTAR | F5: BİRİM FİYATI | G5: TUTAR
A6: MZ 200-002 | B6: POLYEMİD | C6: MENTEŞE SABİTLEME LAMEL TAKOZU | D6: 15*40*66 | E6: 2 | F6: ='STOK YENİ'!Q88 -> 0.7095 | G6: =E6*F6 -> 1.419
A7: MZ 400-002 | B7: İNOX | C7: SOMUN | D7: M6 | E7: 3 | F7: 1 | G7: =E7*F7 -> 3
A8: MZ 400-012 | B8: İNOX | C8: DÜZ KAPAK VİDASI | D8: 3,9*19 | E8: 4 | F8: 0.1 | G8: =E8*F8 -> 0.4
A9: MZ 200-030 | B9: NAYLONALTI | C9: CAM TAKOZU | D9: 1 MM | E9: 0 | F9: 0.03 | G9: 0
A10: MZ 200-031 | B10: NAYLONALTI | C10: CAM TAKOZU | D10: 2 MM | E10: 1 | F10: 0.03 | G10: 0.03
A11: MZ 200-032 | B11: NAYLONALTI | C11: CAM TAKOZU | D11: 3 MM | E11: 1 | F11: 0.04 | G11: 0.04
A12: MZ 200-033 | B12: NAYLONALTI | C12: CAM TAKOZU | D12: 5 MM | E12: 1 | F12: 0.05 | G12: 0.05
A13: MZ 400-003 | B13: POLYEMİD | C13: MENTEŞE MİL YATAĞI | D13: 16*22*13,3 | E13: 2 | F13: ='STOK YENİ'!Q89 -> 0.3915 | G13: 0.783
A14: MZ 200-004 | B14: POLYEMİD | C14: ALT ÇIKIŞ AĞZI | D14: 20,6*47,5*56 | E14: 1 | F14: ='STOK YENİ'!Q90 -> 0.93975 | G14: 0.93975
A15: MZ 200-005 | B15: POLYEMİD | C15: ALT ÇIKIŞ AĞZI KAPAĞI | D15: 44,8*65*67,6 | E15: 1 | F15: ='STOK YENİ'!Q91 -> 1.2045 | G15: 1.2045
A16: MZ 200-006 | B16: POLYEMİD | C16: ÜST ÇIKIŞ AĞZI | D16: 24,5*48*85 | E16: 1 | F16: ='STOK YENİ'!Q92 -> 1.1295 | G16: 1.1295
A17: MZ 200-007 | B17: POLYEMİD | C17: KLAVUZ - BOYNUZ | D17: 39,9*68,1*151,8 | E17: 1 | F17: ='STOK YENİ'!Q93 -> 1.28625 | G17: 1.28625
A18: MZ 200-008 | B18: POLYEMİD | C18: KLAVUZ - BOYNUZ TABANI | D18: 19,38*38,9*40 | E18: 1 | F18: ='STOK YENİ'!Q94 -> 0.58125 | G18: 0.58125
B19: İNOX | C19: BOYNUZ BAĞLANTI PİMİ | D19: 4*40 | E19: 1 | F19: 0.75 | G19: =E19*F19 -> 0.75
C20: İŞÇİLİK | E20: 2 | F20: 0.15 | G20: =E20*F20 -> 0.3
A21: MZ 200-021 | B21: POLYEMİD | C21: ÇARPMA KİLİT GÖVDESİ | D21: 22,5*48*40 | E21: 2 | F21: ='STOK YENİ'!Q107 -> 1.02225 | G21: =E21*F21 -> 2.0445
A22: MZ 200-022 | B22: POLYEMİD | C22: ÇARPMA KİLİT DİLİ | D22: 19*73,94 | E22: 2 | F22: ='STOK YENİ'!Q108 -> 0.948 | G22: 1.896
A23: MZ 200-023 | B23: POLYEMİD | C23: ÇARPMA KİLİT DİL EMNİYETİ | D23: 3*4*14,4 | E23: 2 | F23: ='STOK YENİ'!Q109 -> 0.3915 | G23: 0.783
B24: İNOX | C24: ÇARPMA KLİT YAYI | E24: 2 | F24: 0.5 | G24: =E24*F24 -> 1
B25: İNOX | C25: ÇARPMA KİLİT YAY PİMİ | D25: 2,8*8 | E25: 2 | F25: 0.5 | G25: =E25*F25 -> 1
A26: MZ 400-011 | B26: İNOX | C26: YSPB MATKAP UÇLU VİDA (YAN DİKME) | D26: 3,9*13 | E26: 4 | F26: =[2]HIRDAVAT!$L$11 -> 0.0352 | G26: 0.1408
A27: MZ 400-014 | B27: DAKRO | C27: YHB MATKAPUÇLU VİDA | D27: 3,9*13 | E27: 3 | F27: 0.022 | G27: 0.066
A28: MZ 400-015 | B28: DAKRO | C28: YHB MATKAPUÇLU VİDA | D28: 3,9*19 | E28: 1 | F28: 0.026 | G28: 0.026
A29: MZ 400-016 | B29: DAKRO | C29: YHB MATKAPUÇLU VİDA | D29: 3,9*25 | E29: 4 | F29: 0.032 | G29: 0.128
A30: MZ 300-001 | B30: ZAMAK 5 | C30: MANTEŞE SABİTLEME TAKOZ LAMELİ | D30: 5*30*82,7 | E30: 2 | F30: ='STOK YENİ'!Q141 -> 2.108 | G30: 4.216
A31: MZ 400-004 | B31: İNOX | C31: HAVŞABAŞ İMBUS | D31: M6*25 | E31: 2 | F31: 0.19 | G31: 0.38
A32: MZ 300-009 | B32: ZAMAK 5 | C32: MENTEŞELİ KANAT MİLİ | D32: 23*51,5*27,3 | E32: 2 | F32: ='STOK YENİ'!Q149 -> 0.85 | G32: 1.7
A33: MZ 400-008 | B33: İNOX | C33: SETİSKUR | D33: M6*10 | E33: 3 | F33: 0.06 | G33: =E33*F33 -> 0.18
C34: STİCKER | D34: Ø39 | E34: 1 | F34: 0.7 | G34: 0.7
C35: STİCKER | D35: 23*45 | E35: 2 | F35: 0.25 | G35: 0.5
A36: MZ 400-023 | B36: NAYLON | C36: KİLİTLİ NAYLON POŞET | D36: 11*14*7 | E36: 1 | F36: 0 | G36: 0
A37: MZ 400-024 | B37: NAYLON | C37: KİLİTLİ NAYLON POŞET | D37: 6*7*7 | E37: 1 | F37: 0 | G37: 0
A38: MZ 200-035 | B38: KARTON | C38: KARTON KOLİ | D38: 480*400*180 | E38: 1 | F38: 0.75 | G38: 0.75
A39: MZ 200-036 | B39: KARTON | C39: KUTU OFSET BASKILI | D39: 79*85*200 | E39: 1 | F39: 1.925 | G39: 1.925
C40: PAKETLEME İŞÇİLİĞİ | E40: 4 | F40: 0.15 | G40: 0.6
B41: PLASTİK | C41: BONCUK ZİNCİR | D41: BP028 | E41: 2.2 | F41: 0.55 | G41: 1.21
A42: MZ 400-017 | C42: BULDEX VİDA | D42: 6*60 | E42: 3 | F42: 0.145 | G42: =E42*F42 -> 0.435
A43: MZ 400-018 | C43: BULDEX VİDA | D43: 6*120 | E43: 1 | F43: 0.27 | G43: =E43*F43 -> 0.27
B44: SLİKON | C44: CONTA | D44: Ø10 | E44: 1 | F44: 0.02 | G44: =E44*F44 -> 0.02
C45: BARKOD
E47: TOPLAM | G47: =SUM(G6:G46) -> 31.88355
E48: KDV %18 | G48: =(G47/100)*18 -> 5.739039 | J48: =K48/H56 -> 1.100508145 | K48: 52.47
E49: GENEL TOPLAM | G49: =SUM(G47:G48) -> 37.622589
H50: NAKİT | I50: 45 GÜN | J50: 90 GÜN
E52: AR-GE | F52: 0.1 | G52: =(G47*F52)+G47 -> 35.071905
E53: İŞÇİLİK | F53: 0.1 | G53: =(G52*F53)+G52 -> 38.5790955
E54: REKLAM | F54: 0.1 | G54: =(G53*F54)+G53 -> 42.43700505
E55: MARKA | F55: 0.05 | G55: =(G54*F55)+G54 -> 44.5588553
E56: MİKTARSAL | F56: 0.07 | G56: =(G55*F56)+G55 -> 47.67797517 | H56: =G56 -> 47.67797517 | I56: =H56*1.05 -> 50.06187393 | J56: =I56*1.05 -> 52.56496763

Sheet SABİT KANAT TK (hidden)
E2: FİRMA : ALOĞLU TENTE (YURDANUR ALOĞLU) PAŞA ALANI MAH. 453.SOK NO:14 KARESİ / BALIKESİR Kurtdereli VD. 055 007 6704 TEL : +90 266 249 2263
E3: SİPARİŞ TARİHİ | G3: TESLİM TARİHİ
E4: =TODAY() -> 2021-12-26 | G4: =TODAY()+1 -> 2021-12-27
A5: MARKİZZ ÜRÜN KODU | B5: MALZEME CİNSİ | C5: ÜRÜN AÇIKLAMASI | D5: ÖLÇÜ | E5: MİKTAR | F5: BİRİM FİYATI | G5: TUTAR
C19: BARKOD
E21: TOPLAM | G21: =SUM(G6:G20) -> 0
E22: KDV %18 | G22: =(G21/100)*18 -> 0 | K22: 24% FARK
E23: GENEL TOPLAM | G23: =SUM(G21:G22) -> 0
H24: NAKİT | I24: 45 GÜN | J24: 90 GÜN
E25: AR-GE %10 | G25: =G21*1.1 -> 0
E26: İŞÇİLİK %10 | G26: =G25*1.1 -> 0
E27: REKLAM %10 | G27: =G26*1.1 -> 0
E28: MARKA %12 | G28: =G27*1.12 -> 0
E29: MİKTARSAL %15 | G29: =G28*1.15 -> 0 | H29: =G29 -> 0 | I29: =H29*1.05 -> 0 | J29: =I29*1.05 -> 0
E31: 250
E32: 500
E33: 750
